{"text_format":"1","workbook":"xlsx","n_sheets":6,"sheets":["Start","Your User Details (Carrier)","Your User Details (Broker)","LMS Upload (Carrier)","LMS Upload (Broker)","Keys"],"not_rendered":{"charts":0,"images":11,"macros":1,"external_links":1,"defined_names":0,"comments":0,"pivot_tables":0},"unopened":[],"bounds":{"document_bytes":16777216,"sheet_cells":100000,"rows_first":2000,"rows_last":500,"rows_between":2000,"halvings":0,"cell_chars":16384,"cell_head_chars":4096},"cells_cut":0,"cells_raw":0,"read":"whole","date_system":"1900"}

{"sheet":"Start","index":0,"n_rows":27,"n_cols":5,"rows_kept":27,"cut":false,"hidden":false,"merged":[]}
[]
[]
[]
[]
[]
[]
[]
[]
[]
[]
[]
[null,null,null,null,"New Users / New Teams Onboarding Form"]
[null,null,null,null,"If you need assistance in completing this form, please email us at:"]
[null,null,null,null,"pplenquiries@placingplatformlimited.com"]
[]
[]
[null,null,null,null,"Please ensure you are using the latest version of this onboarding form. "]
[null,null,null,null,"To download the latest version of this form, please visit:"]
[null,null,null,null,"https://placingplatformlimited.com/useful-information"]
[]
[null,null,null,null,"Please enable the content of this form if asked to do so"]
[null,null,null,null,"This form contains dynamic content that depends on your responses. Enabling content will ensure the form works as intended"]
[]
[]
[null,null,null,null,"What is your organisation name on PPL:"]
[]
[null,null,null,null,"Are you an existing broker or carrier?"]

{"sheet":"Your User Details (Carrier)","index":1,"n_rows":124,"n_cols":11,"rows_kept":124,"cut":false,"hidden":true,"merged":[]}
[]
[null,"Your User Details"]
[null,"Carrier Teams and Users Setup"]
[null,"Once we have your completed form we will create your accounts. If we require more information, we will contact you."]
[]
[null,"Section 1: Your New Team(s)"]
[null,"Only complete this section if you are setting up a new team"]
[null,"Team 1"]
[null,"Team Name:",null,null,{"$f":"IF(ISBLANK(C9),\"0\",\"12.5\")","v":"0"}]
[null,"Team Email:"]
[null,"Team visible to brokers:"]
[null,"Cover Written:"]
[null,"Email Notification:","Please select"]
[null,"Team 2"]
[null,"Team Name:"]
[null,"Team Email:"]
[null,"Team visible to brokers:"]
[null,"Cover Written:"]
[null,"Email Notification:","Please select"]
[null,"Team 3"]
[null,"Team Name:"]
[null,"Team Email:"]
[null,"Team visible to brokers:"]
[null,"Cover Written:"]
[null,"Email Notification:","Please select"]
[null,"Team 4"]
[null,"Team Name:"]
[null,"Team Email:"]
[null,"Team visible to brokers:"]
[null,"Cover Written:"]
[null,"Email Notification:","Please select"]
[null,"Team 5"]
[null,"Team Name:"]
[null,"Team Email:"]
[null,"Team visible to brokers:"]
[null,"Cover Written:"]
[null,"Email Notification:","Please select"]
[null,"Team 6"]
[null,"Team Name:"]
[null,"Team Email:"]
[null,"Team visible to brokers:"]
[null,"Cover Written:"]
[null,"Email Notification:","Please select"]
[null,"Team 7"]
[null,"Team Name:"]
[null,"Team Email:"]
[null,"Team visible to brokers:"]
[null,"Cover Written:"]
[null,"Email Notification:","Please select"]
[null,"Team 8"]
[null,"Team Name:"]
[null,"Team Email:"]
[null,"Team visible to brokers:"]
[null,"Cover Written:"]
[null,"Email Notification:","Please select"]
[null,"Team 9"]
[null,"Team Name:"]
[null,"Team Email:"]
[null,"Team visible to brokers:"]
[null,"Cover Written:"]
[null,"Email Notification:","Please select"]
[null,"Team 10"]
[null,"Team Name:"]
[null,"Team Email:"]
[null,"Team visible to brokers:"]
[null,"Cover Written:"]
[null,"Email Notification:","Please select"]
[]
[]
[]
[null,"Section 2: Your Users"]
[]
[null,"User No.","First Name","Last Name","E-Mail Address","Telephone Number","Team\n(Add you new teams as per Section 1. For existing team, please refer to your company configuration)","Stamps Access\nList existing stamps by stamp id or description. Please refer to company configuration if more information required","Role","Internal Approver","SuperUser"]
[null,"Example:  1","John","Smith","john.smith@abcinsurance.com","0207 8765 4321","1, 2, Marine, Specie","Stamp id 1234, 1235,…","Full-binding","Yes","Yes"]
[null,1]
[null,2]
[null,3]
[null,4]
[null,5]
[null,6]
[null,7]
[null,8]
[null,9]
[null,10]
[null,11]
[null,12]
[null,13]
[null,14]
[null,15]
[null,16]
[null,17]
[null,18]
[null,19]
[null,20]
[null,21]
[null,22]
[null,23]
[null,24]
[null,25]
[null,26]
[null,27]
[null,28]
[null,29]
[null,30]
[null,31]
[null,32]
[null,33]
[null,34]
[null,35]
[null,36]
[null,37]
[null,38]
[null,39]
[null,40]
[null,41]
[null,42]
[null,43]
[null,44]
[null,45]
[null,46]
[null,47]
[null,48]
[null,49]
[null,50]

{"sheet":"Your User Details (Broker)","index":2,"n_rows":105,"n_cols":19,"rows_kept":105,"cut":false,"hidden":true,"merged":[]}
[]
[null,"Your User Details"]
[null,"Broker Teams and Users Setup"]
[null,"Once we have your completed form we will create your accounts. If we require more information, we will contact you."]
[]
[null,"Section 1: Your New Team(s)"]
[null,"Only complete this section if you are setting up a new team"]
[null,"Team 1"]
[null,"Team Name:",null,{"$f":"IF(ISBLANK(C9),\"0\",\"11.111111\")","v":"0"}]
[null,"Broker Code:",null,{"$f":"IF(ISBLANK(C10),\"0\",\"11.111111\")","v":"0"}]
[null,"Cover Placed:"]
[null,"Team 2"]
[null,"Team Name:"]
[null,"Broker Code:"]
[null,"Cover Placed:"]
[null,"Team 3"]
[null,"Team Name:"]
[null,"Broker Code:"]
[null,"Cover Placed:"]
[null,"Team 4"]
[null,"Team Name:"]
[null,"Broker Code:"]
[null,"Cover Placed:"]
[null,"Team 5"]
[null,"Team Name:"]
[null,"Broker Code:"]
[null,"Cover Placed:"]
[null,"Team 6"]
[null,"Team Name:"]
[null,"Broker Code:"]
[null,"Cover Placed:"]
[null,"Team 7"]
[null,"Team Name:"]
[null,"Broker Code:"]
[null,"Cover Placed:"]
[null,"Team 8"]
[null,"Team Name:"]
[null,"Broker Code:"]
[null,"Cover Placed:"]
[null,"Team 9"]
[null,"Team Name:"]
[null,"Broker Code:"]
[null,"Cover Placed:"]
[null,"Team 10"]
[null,"Team Name:"]
[null,"Broker Code:"]
[null,"Cover Placed:"]
[]
[]
[]
[]
[null,"Section 2: Your Users"]
[]
[null,"User No.","First Name","Last Name","E-Mail Address","Telephone Number","Team\n(Add you new teams as per Section 1. For existing team, please refer to your company configuration)","Role","Internal Approver","Backload Admin","Superuser"]
[null,"Example:  1","John","Smith","john.smith@abcbroker.com","+44 (0)207 8765 4321","1, 2, Marine, Specie","Broker","Yes","Yes","No"]
[null,1,null,null,null,null,null,null,null,null,null,{"$f":"IF(ISBLANK(C56),\"0\",\"11.1111111\")","v":"0"},"0","0","0","0","0","0",{"$f":"SUM(L56+M56+N56+O56+P56+Q56+R56)+D9+D10","v":0}]
[null,2]
[null,3]
[null,4]
[null,5]
[null,6]
[null,7]
[null,8]
[null,9]
[null,10]
[null,11]
[null,12]
[null,13]
[null,14]
[null,15]
[null,16]
[null,17]
[null,18]
[null,19]
[null,20]
[null,21]
[null,22]
[null,23]
[null,24]
[null,25]
[null,26]
[null,27]
[null,28]
[null,29]
[null,30]
[null,31]
[null,32]
[null,33]
[null,34]
[null,35]
[null,36]
[null,37]
[null,38]
[null,39]
[null,40]
[null,41]
[null,42]
[null,43]
[null,44]
[null,45]
[null,46]
[null,47]
[null,48]
[null,49]
[null,50]

{"sheet":"LMS Upload (Carrier)","index":3,"n_rows":50,"n_cols":16,"rows_kept":50,"cut":false,"hidden":true,"merged":[]}
["LoginId","Password","EmailAddress","FirstName","LastName","AddressLine1","AddressLine2","City","State","Country","PostalCode","ContactNumber","IsActive","Broker or Underwriter","Organisation","Class of Business"]
[{"$f":"IF(ISBLANK('Your User Details (Carrier)'!E75),\"\",'Your User Details (Carrier)'!E75)","v":""},{"$f":"IF(ISBLANK('Your User Details (Carrier)'!E75),\"\",\"P@ssw0rd\")","v":""},{"$f":"IF(ISBLANK('Your User Details (Carrier)'!E75),\"\",'Your User Details (Carrier)'!E75)","v":""},{"$f":"IF(ISBLANK('Your User Details (Carrier)'!C75),\"\",'Your User Details (Carrier)'!C75)","v":""},{"$f":"IF(ISBLANK('Your User Details (Carrier)'!D75),\"\",'Your User Details (Carrier)'!D75)","v":""},null,null,null,null,null,null,null,{"$f":"IF(ISBLANK('Your User Details (Carrier)'!E75),\"\",\"Y\")","v":""},{"$f":"IF(ISBLANK('Your User Details (Carrier)'!E75),\"\",\"Underwriter\")","v":""},{"$f":"IF(ISBLANK(Start!$E$26),\"\",Start!$E$26)","v":""},{"$f":"IF(ISBLANK('Your User Details (Carrier)'!E75),\"\",\"Multiple\")","v":""}]
[{"$f":"IF(ISBLANK('Your User Details (Carrier)'!E76),\"\",'Your User Details (Carrier)'!E76)","v":""},{"$f":"IF(ISBLANK('Your User Details (Carrier)'!E76),\"\",\"P@ssw0rd\")","v":""},{"$f":"IF(ISBLANK('Your User Details (Carrier)'!E76),\"\",'Your User Details (Carrier)'!E76)","v":""},{"$f":"IF(ISBLANK('Your User Details (Carrier)'!C76),\"\",'Your User Details (Carrier)'!C76)","v":""},{"$f":"IF(ISBLANK('Your User Details (Carrier)'!D76),\"\",'Your User Details (Carrier)'!D76)","v":""},null,null,null,null,null,null,null,{"$f":"IF(ISBLANK('Your User Details (Carrier)'!E76),\"\",\"Y\")","v":""},{"$f":"IF(ISBLANK('Your User Details (Carrier)'!E76),\"\",\"Underwriter\")","v":""},{"$f":"IF(ISBLANK(Start!$E$26),\"\",Start!$E$26)","v":""},{"$f":"IF(ISBLANK('Your User Details (Carrier)'!E76),\"\",\"Multiple\")","v":""}]
[{"$f":"IF(ISBLANK('Your User Details (Carrier)'!E77),\"\",'Your User Details (Carrier)'!E77)","v":""},{"$f":"IF(ISBLANK('Your User Details (Carrier)'!E77),\"\",\"P@ssw0rd\")","v":""},{"$f":"IF(ISBLANK('Your User Details (Carrier)'!E77),\"\",'Your User Details (Carrier)'!E77)","v":""},{"$f":"IF(ISBLANK('Your User Details (Carrier)'!C77),\"\",'Your User Details (Carrier)'!C77)","v":""},{"$f":"IF(ISBLANK('Your User Details (Carrier)'!D77),\"\",'Your User Details (Carrier)'!D77)","v":""},null,null,null,null,null,null,null,{"$f":"IF(ISBLANK('Your User Details (Carrier)'!E77),\"\",\"Y\")","v":""},{"$f":"IF(ISBLANK('Your User Details (Carrier)'!E77),\"\",\"Underwriter\")","v":""},{"$f":"IF(ISBLANK(Start!$E$26),\"\",Start!$E$26)","v":""},{"$f":"IF(ISBLANK('Your User Details (Carrier)'!E77),\"\",\"Multiple\")","v":""}]
[{"$f":"IF(ISBLANK('Your User Details (Carrier)'!E78),\"\",'Your User Details (Carrier)'!E78)","v":""},{"$f":"IF(ISBLANK('Your User Details (Carrier)'!E78),\"\",\"P@ssw0rd\")","v":""},{"$f":"IF(ISBLANK('Your User Details (Carrier)'!E78),\"\",'Your User Details (Carrier)'!E78)","v":""},{"$f":"IF(ISBLANK('Your User Details (Carrier)'!C78),\"\",'Your User Details (Carrier)'!C78)","v":""},{"$f":"IF(ISBLANK('Your User Details (Carrier)'!D78),\"\",'Your User Details (Carrier)'!D78)","v":""},null,null,null,null,null,null,null,{"$f":"IF(ISBLANK('Your User Details (Carrier)'!E78),\"\",\"Y\")","v":""},{"$f":"IF(ISBLANK('Your User Details (Carrier)'!E78),\"\",\"Underwriter\")","v":""},{"$f":"IF(ISBLANK(Start!$E$26),\"\",Start!$E$26)","v":""},{"$f":"IF(ISBLANK('Your User Details (Carrier)'!E78),\"\",\"Multiple\")","v":""}]
[{"$f":"IF(ISBLANK('Your User Details (Carrier)'!E79),\"\",'Your User Details (Carrier)'!E79)","v":""},{"$f":"IF(ISBLANK('Your User Details (Carrier)'!E79),\"\",\"P@ssw0rd\")","v":""},{"$f":"IF(ISBLANK('Your User Details (Carrier)'!E79),\"\",'Your User Details (Carrier)'!E79)","v":""},{"$f":"IF(ISBLANK('Your User Details (Carrier)'!C79),\"\",'Your User Details (Carrier)'!C79)","v":""},{"$f":"IF(ISBLANK('Your User Details (Carrier)'!D79),\"\",'Your User Details (Carrier)'!D79)","v":""},null,null,null,null,null,null,null,{"$f":"IF(ISBLANK('Your User Details (Carrier)'!E79),\"\",\"Y\")","v":""},{"$f":"IF(ISBLANK('Your User Details (Carrier)'!E79),\"\",\"Underwriter\")","v":""},{"$f":"IF(ISBLANK(Start!$E$26),\"\",Start!$E$26)","v":""},{"$f":"IF(ISBLANK('Your User Details (Carrier)'!E79),\"\",\"Multiple\")","v":""}]
[{"$f":"IF(ISBLANK('Your User Details (Carrier)'!E80),\"\",'Your User Details (Carrier)'!E80)","v":""},{"$f":"IF(ISBLANK('Your User Details (Carrier)'!E80),\"\",\"P@ssw0rd\")","v":""},{"$f":"IF(ISBLANK('Your User Details (Carrier)'!E80),\"\",'Your User Details (Carrier)'!E80)","v":""},{"$f":"IF(ISBLANK('Your User Details (Carrier)'!C80),\"\",'Your User Details (Carrier)'!C80)","v":""},{"$f":"IF(ISBLANK('Your User Details (Carrier)'!D80),\"\",'Your User Details (Carrier)'!D80)","v":""},null,null,null,null,null,null,null,{"$f":"IF(ISBLANK('Your User Details (Carrier)'!E80),\"\",\"Y\")","v":""},{"$f":"IF(ISBLANK('Your User Details (Carrier)'!E80),\"\",\"Underwriter\")","v":""},{"$f":"IF(ISBLANK(Start!$E$26),\"\",Start!$E$26)","v":""},{"$f":"IF(ISBLANK('Your User Details (Carrier)'!E80),\"\",\"Multiple\")","v":""}]
[{"$f":"IF(ISBLANK('Your User Details (Carrier)'!E81),\"\",'Your User Details (Carrier)'!E81)","v":""},{"$f":"IF(ISBLANK('Your User Details (Carrier)'!E81),\"\",\"P@ssw0rd\")","v":""},{"$f":"IF(ISBLANK('Your User Details (Carrier)'!E81),\"\",'Your User Details (Carrier)'!E81)","v":""},{"$f":"IF(ISBLANK('Your User Details (Carrier)'!C81),\"\",'Your User Details (Carrier)'!C81)","v":""},{"$f":"IF(ISBLANK('Your User Details (Carrier)'!D81),\"\",'Your User Details (Carrier)'!D81)","v":""},null,null,null,null,null,null,null,{"$f":"IF(ISBLANK('Your User Details (Carrier)'!E81),\"\",\"Y\")","v":""},{"$f":"IF(ISBLANK('Your User Details (Carrier)'!E81),\"\",\"Underwriter\")","v":""},{"$f":"IF(ISBLANK(Start!$E$26),\"\",Start!$E$26)","v":""},{"$f":"IF(ISBLANK('Your User Details (Carrier)'!E81),\"\",\"Multiple\")","v":""}]
[{"$f":"IF(ISBLANK('Your User Details (Carrier)'!E82),\"\",'Your User Details (Carrier)'!E82)","v":""},{"$f":"IF(ISBLANK('Your User Details (Carrier)'!E82),\"\",\"P@ssw0rd\")","v":""},{"$f":"IF(ISBLANK('Your User Details (Carrier)'!E82),\"\",'Your User Details (Carrier)'!E82)","v":""},{"$f":"IF(ISBLANK('Your User Details (Carrier)'!C82),\"\",'Your User Details (Carrier)'!C82)","v":""},{"$f":"IF(ISBLANK('Your User Details (Carrier)'!D82),\"\",'Your User Details (Carrier)'!D82)","v":""},null,null,null,null,null,null,null,{"$f":"IF(ISBLANK('Your User Details (Carrier)'!E82),\"\",\"Y\")","v":""},{"$f":"IF(ISBLANK('Your User Details (Carrier)'!E82),\"\",\"Underwriter\")","v":""},{"$f":"IF(ISBLANK(Start!$E$26),\"\",Start!$E$26)","v":""},{"$f":"IF(ISBLANK('Your User Details (Carrier)'!E82),\"\",\"Multiple\")","v":""}]
[{"$f":"IF(ISBLANK('Your User Details (Carrier)'!E83),\"\",'Your User Details (Carrier)'!E83)","v":""},{"$f":"IF(ISBLANK('Your User Details (Carrier)'!E83),\"\",\"P@ssw0rd\")","v":""},{"$f":"IF(ISBLANK('Your User Details (Carrier)'!E83),\"\",'Your User Details (Carrier)'!E83)","v":""},{"$f":"IF(ISBLANK('Your User Details (Carrier)'!C83),\"\",'Your User Details (Carrier)'!C83)","v":""},{"$f":"IF(ISBLANK('Your User Details (Carrier)'!D83),\"\",'Your User Details (Carrier)'!D83)","v":""},null,null,null,null,null,null,null,{"$f":"IF(ISBLANK('Your User Details (Carrier)'!E83),\"\",\"Y\")","v":""},{"$f":"IF(ISBLANK('Your User Details (Carrier)'!E83),\"\",\"Underwriter\")","v":""},{"$f":"IF(ISBLANK(Start!$E$26),\"\",Start!$E$26)","v":""},{"$f":"IF(ISBLANK('Your User Details (Carrier)'!E83),\"\",\"Multiple\")","v":""}]
[{"$f":"IF(ISBLANK('Your User Details (Carrier)'!E84),\"\",'Your User Details (Carrier)'!E84)","v":""},{"$f":"IF(ISBLANK('Your User Details (Carrier)'!E84),\"\",\"P@ssw0rd\")","v":""},{"$f":"IF(ISBLANK('Your User Details (Carrier)'!E84),\"\",'Your User Details (Carrier)'!E84)","v":""},{"$f":"IF(ISBLANK('Your User Details (Carrier)'!C84),\"\",'Your User Details (Carrier)'!C84)","v":""},{"$f":"IF(ISBLANK('Your User Details (Carrier)'!D84),\"\",'Your User Details (Carrier)'!D84)","v":""},null,null,null,null,null,null,null,{"$f":"IF(ISBLANK('Your User Details (Carrier)'!E84),\"\",\"Y\")","v":""},{"$f":"IF(ISBLANK('Your User Details (Carrier)'!E84),\"\",\"Underwriter\")","v":""},{"$f":"IF(ISBLANK(Start!$E$26),\"\",Start!$E$26)","v":""},{"$f":"IF(ISBLANK('Your User Details (Carrier)'!E84),\"\",\"Multiple\")","v":""}]
[{"$f":"IF(ISBLANK('Your User Details (Carrier)'!E85),\"\",'Your User Details (Carrier)'!E85)","v":""},{"$f":"IF(ISBLANK('Your User Details (Carrier)'!E85),\"\",\"P@ssw0rd\")","v":""},{"$f":"IF(ISBLANK('Your User Details (Carrier)'!E85),\"\",'Your User Details (Carrier)'!E85)","v":""},{"$f":"IF(ISBLANK('Your User Details (Carrier)'!C85),\"\",'Your User Details (Carrier)'!C85)","v":""},{"$f":"IF(ISBLANK('Your User Details (Carrier)'!D85),\"\",'Your User Details (Carrier)'!D85)","v":""},null,null,null,null,null,null,null,{"$f":"IF(ISBLANK('Your User Details (Carrier)'!E85),\"\",\"Y\")","v":""},{"$f":"IF(ISBLANK('Your User Details (Carrier)'!E85),\"\",\"Underwriter\")","v":""},{"$f":"IF(ISBLANK(Start!$E$26),\"\",Start!$E$26)","v":""},{"$f":"IF(ISBLANK('Your User Details (Carrier)'!E85),\"\",\"Multiple\")","v":""}]
[{"$f":"IF(ISBLANK('Your User Details (Carrier)'!E86),\"\",'Your User Details (Carrier)'!E86)","v":""},{"$f":"IF(ISBLANK('Your User Details (Carrier)'!E86),\"\",\"P@ssw0rd\")","v":""},{"$f":"IF(ISBLANK('Your User Details (Carrier)'!E86),\"\",'Your User Details (Carrier)'!E86)","v":""},{"$f":"IF(ISBLANK('Your User Details (Carrier)'!C86),\"\",'Your User Details (Carrier)'!C86)","v":""},{"$f":"IF(ISBLANK('Your User Details (Carrier)'!D86),\"\",'Your User Details (Carrier)'!D86)","v":""},null,null,null,null,null,null,null,{"$f":"IF(ISBLANK('Your User Details (Carrier)'!E86),\"\",\"Y\")","v":""},{"$f":"IF(ISBLANK('Your User Details (Carrier)'!E86),\"\",\"Underwriter\")","v":""},{"$f":"IF(ISBLANK(Start!$E$26),\"\",Start!$E$26)","v":""},{"$f":"IF(ISBLANK('Your User Details (Carrier)'!E86),\"\",\"Multiple\")","v":""}]
[{"$f":"IF(ISBLANK('Your User Details (Carrier)'!E87),\"\",'Your User Details (Carrier)'!E87)","v":""},{"$f":"IF(ISBLANK('Your User Details (Carrier)'!E87),\"\",\"P@ssw0rd\")","v":""},{"$f":"IF(ISBLANK('Your User Details (Carrier)'!E87),\"\",'Your User Details (Carrier)'!E87)","v":""},{"$f":"IF(ISBLANK('Your User Details (Carrier)'!C87),\"\",'Your User Details (Carrier)'!C87)","v":""},{"$f":"IF(ISBLANK('Your User Details (Carrier)'!D87),\"\",'Your User Details (Carrier)'!D87)","v":""},null,null,null,null,null,null,null,{"$f":"IF(ISBLANK('Your User Details (Carrier)'!E87),\"\",\"Y\")","v":""},{"$f":"IF(ISBLANK('Your User Details (Carrier)'!E87),\"\",\"Underwriter\")","v":""},{"$f":"IF(ISBLANK(Start!$E$26),\"\",Start!$E$26)","v":""},{"$f":"IF(ISBLANK('Your User Details (Carrier)'!E87),\"\",\"Multiple\")","v":""}]
[{"$f":"IF(ISBLANK('Your User Details (Carrier)'!E88),\"\",'Your User Details (Carrier)'!E88)","v":""},{"$f":"IF(ISBLANK('Your User Details (Carrier)'!E88),\"\",\"P@ssw0rd\")","v":""},{"$f":"IF(ISBLANK('Your User Details (Carrier)'!E88),\"\",'Your User Details (Carrier)'!E88)","v":""},{"$f":"IF(ISBLANK('Your User Details (Carrier)'!C88),\"\",'Your User Details (Carrier)'!C88)","v":""},{"$f":"IF(ISBLANK('Your User Details (Carrier)'!D88),\"\",'Your User Details (Carrier)'!D88)","v":""},null,null,null,null,null,null,null,{"$f":"IF(ISBLANK('Your User Details (Carrier)'!E88),\"\",\"Y\")","v":""},{"$f":"IF(ISBLANK('Your User Details (Carrier)'!E88),\"\",\"Underwriter\")","v":""},{"$f":"IF(ISBLANK(Start!$E$26),\"\",Start!$E$26)","v":""},{"$f":"IF(ISBLANK('Your User Details (Carrier)'!E88),\"\",\"Multiple\")","v":""}]
[{"$f":"IF(ISBLANK('Your User Details (Carrier)'!E89),\"\",'Your User Details (Carrier)'!E89)","v":""},{"$f":"IF(ISBLANK('Your User Details (Carrier)'!E89),\"\",\"P@ssw0rd\")","v":""},{"$f":"IF(ISBLANK('Your User Details (Carrier)'!E89),\"\",'Your User Details (Carrier)'!E89)","v":""},{"$f":"IF(ISBLANK('Your User Details (Carrier)'!C89),\"\",'Your User Details (Carrier)'!C89)","v":""},{"$f":"IF(ISBLANK('Your User Details (Carrier)'!D89),\"\",'Your User Details (Carrier)'!D89)","v":""},null,null,null,null,null,null,null,{"$f":"IF(ISBLANK('Your User Details (Carrier)'!E89),\"\",\"Y\")","v":""},{"$f":"IF(ISBLANK('Your User Details (Carrier)'!E89),\"\",\"Underwriter\")","v":""},{"$f":"IF(ISBLANK(Start!$E$26),\"\",Start!$E$26)","v":""},{"$f":"IF(ISBLANK('Your User Details (Carrier)'!E89),\"\",\"Multiple\")","v":""}]
[{"$f":"IF(ISBLANK('Your User Details (Carrier)'!E90),\"\",'Your User Details (Carrier)'!E90)","v":""},{"$f":"IF(ISBLANK('Your User Details (Carrier)'!E90),\"\",\"P@ssw0rd\")","v":""},{"$f":"IF(ISBLANK('Your User Details (Carrier)'!E90),\"\",'Your User Details (Carrier)'!E90)","v":""},{"$f":"IF(ISBLANK('Your User Details (Carrier)'!C90),\"\",'Your User Details (Carrier)'!C90)","v":""},{"$f":"IF(ISBLANK('Your User Details (Carrier)'!D90),\"\",'Your User Details (Carrier)'!D90)","v":""},null,null,null,null,null,null,null,{"$f":"IF(ISBLANK('Your User Details (Carrier)'!E90),\"\",\"Y\")","v":""},{"$f":"IF(ISBLANK('Your User Details (Carrier)'!E90),\"\",\"Underwriter\")","v":""},{"$f":"IF(ISBLANK(Start!$E$26),\"\",Start!$E$26)","v":""},{"$f":"IF(ISBLANK('Your User Details (Carrier)'!E90),\"\",\"Multiple\")","v":""}]
[{"$f":"IF(ISBLANK('Your User Details (Carrier)'!E91),\"\",'Your User Details (Carrier)'!E91)","v":""},{"$f":"IF(ISBLANK('Your User Details (Carrier)'!E91),\"\",\"P@ssw0rd\")","v":""},{"$f":"IF(ISBLANK('Your User Details (Carrier)'!E91),\"\",'Your User Details (Carrier)'!E91)","v":""},{"$f":"IF(ISBLANK('Your User Details (Carrier)'!C91),\"\",'Your User Details (Carrier)'!C91)","v":""},{"$f":"IF(ISBLANK('Your User Details (Carrier)'!D91),\"\",'Your User Details (Carrier)'!D91)","v":""},null,null,null,null,null,null,null,{"$f":"IF(ISBLANK('Your User Details (Carrier)'!E91),\"\",\"Y\")","v":""},{"$f":"IF(ISBLANK('Your User Details (Carrier)'!E91),\"\",\"Underwriter\")","v":""},{"$f":"IF(ISBLANK(Start!$E$26),\"\",Start!$E$26)","v":""},{"$f":"IF(ISBLANK('Your User Details (Carrier)'!E91),\"\",\"Multiple\")","v":""}]
[{"$f":"IF(ISBLANK('Your User Details (Carrier)'!E92),\"\",'Your User Details (Carrier)'!E92)","v":""},{"$f":"IF(ISBLANK('Your User Details (Carrier)'!E92),\"\",\"P@ssw0rd\")","v":""},{"$f":"IF(ISBLANK('Your User Details (Carrier)'!E92),\"\",'Your User Details (Carrier)'!E92)","v":""},{"$f":"IF(ISBLANK('Your User Details (Carrier)'!C92),\"\",'Your User Details (Carrier)'!C92)","v":""},{"$f":"IF(ISBLANK('Your User Details (Carrier)'!D92),\"\",'Your User Details (Carrier)'!D92)","v":""},null,null,null,null,null,null,null,{"$f":"IF(ISBLANK('Your User Details (Carrier)'!E92),\"\",\"Y\")","v":""},{"$f":"IF(ISBLANK('Your User Details (Carrier)'!E92),\"\",\"Underwriter\")","v":""},{"$f":"IF(ISBLANK(Start!$E$26),\"\",Start!$E$26)","v":""},{"$f":"IF(ISBLANK('Your User Details (Carrier)'!E92),\"\",\"Multiple\")","v":""}]
[{"$f":"IF(ISBLANK('Your User Details (Carrier)'!E93),\"\",'Your User Details (Carrier)'!E93)","v":""},{"$f":"IF(ISBLANK('Your User Details (Carrier)'!E93),\"\",\"P@ssw0rd\")","v":""},{"$f":"IF(ISBLANK('Your User Details (Carrier)'!E93),\"\",'Your User Details (Carrier)'!E93)","v":""},{"$f":"IF(ISBLANK('Your User Details (Carrier)'!C93),\"\",'Your User Details (Carrier)'!C93)","v":""},{"$f":"IF(ISBLANK('Your User Details (Carrier)'!D93),\"\",'Your User Details (Carrier)'!D93)","v":""},null,null,null,null,null,null,null,{"$f":"IF(ISBLANK('Your User Details (Carrier)'!E93),\"\",\"Y\")","v":""},{"$f":"IF(ISBLANK('Your User Details (Carrier)'!E93),\"\",\"Underwriter\")","v":""},{"$f":"IF(ISBLANK(Start!$E$26),\"\",Start!$E$26)","v":""},{"$f":"IF(ISBLANK('Your User Details (Carrier)'!E93),\"\",\"Multiple\")","v":""}]
[{"$f":"IF(ISBLANK('Your User Details (Carrier)'!E94),\"\",'Your User Details (Carrier)'!E94)","v":""},{"$f":"IF(ISBLANK('Your User Details (Carrier)'!E94),\"\",\"P@ssw0rd\")","v":""},{"$f":"IF(ISBLANK('Your User Details (Carrier)'!E94),\"\",'Your User Details (Carrier)'!E94)","v":""},{"$f":"IF(ISBLANK('Your User Details (Carrier)'!C94),\"\",'Your User Details (Carrier)'!C94)","v":""},{"$f":"IF(ISBLANK('Your User Details (Carrier)'!D94),\"\",'Your User Details (Carrier)'!D94)","v":""},null,null,null,null,null,null,null,{"$f":"IF(ISBLANK('Your User Details (Carrier)'!E94),\"\",\"Y\")","v":""},{"$f":"IF(ISBLANK('Your User Details (Carrier)'!E94),\"\",\"Underwriter\")","v":""},{"$f":"IF(ISBLANK(Start!$E$26),\"\",Start!$E$26)","v":""},{"$f":"IF(ISBLANK('Your User Details (Carrier)'!E94),\"\",\"Multiple\")","v":""}]
[{"$f":"IF(ISBLANK('Your User Details (Carrier)'!E95),\"\",'Your User Details (Carrier)'!E95)","v":""},{"$f":"IF(ISBLANK('Your User Details (Carrier)'!E95),\"\",\"P@ssw0rd\")","v":""},{"$f":"IF(ISBLANK('Your User Details (Carrier)'!E95),\"\",'Your User Details (Carrier)'!E95)","v":""},{"$f":"IF(ISBLANK('Your User Details (Carrier)'!C95),\"\",'Your User Details (Carrier)'!C95)","v":""},{"$f":"IF(ISBLANK('Your User Details (Carrier)'!D95),\"\",'Your User Details (Carrier)'!D95)","v":""},null,null,null,null,null,null,null,{"$f":"IF(ISBLANK('Your User Details (Carrier)'!E95),\"\",\"Y\")","v":""},{"$f":"IF(ISBLANK('Your User Details (Carrier)'!E95),\"\",\"Underwriter\")","v":""},{"$f":"IF(ISBLANK(Start!$E$26),\"\",Start!$E$26)","v":""},{"$f":"IF(ISBLANK('Your User Details (Carrier)'!E95),\"\",\"Multiple\")","v":""}]
[{"$f":"IF(ISBLANK('Your User Details (Carrier)'!E96),\"\",'Your User Details (Carrier)'!E96)","v":""},{"$f":"IF(ISBLANK('Your User Details (Carrier)'!E96),\"\",\"P@ssw0rd\")","v":""},{"$f":"IF(ISBLANK('Your User Details (Carrier)'!E96),\"\",'Your User Details (Carrier)'!E96)","v":""},{"$f":"IF(ISBLANK('Your User Details (Carrier)'!C96),\"\",'Your User Details (Carrier)'!C96)","v":""},{"$f":"IF(ISBLANK('Your User Details (Carrier)'!D96),\"\",'Your User Details (Carrier)'!D96)","v":""},null,null,null,null,null,null,null,{"$f":"IF(ISBLANK('Your User Details (Carrier)'!E96),\"\",\"Y\")","v":""},{"$f":"IF(ISBLANK('Your User Details (Carrier)'!E96),\"\",\"Underwriter\")","v":""},{"$f":"IF(ISBLANK(Start!$E$26),\"\",Start!$E$26)","v":""},{"$f":"IF(ISBLANK('Your User Details (Carrier)'!E96),\"\",\"Multiple\")","v":""}]
[{"$f":"IF(ISBLANK('Your User Details (Carrier)'!E97),\"\",'Your User Details (Carrier)'!E97)","v":""},{"$f":"IF(ISBLANK('Your User Details (Carrier)'!E97),\"\",\"P@ssw0rd\")","v":""},{"$f":"IF(ISBLANK('Your User Details (Carrier)'!E97),\"\",'Your User Details (Carrier)'!E97)","v":""},{"$f":"IF(ISBLANK('Your User Details (Carrier)'!C97),\"\",'Your User Details (Carrier)'!C97)","v":""},{"$f":"IF(ISBLANK('Your User Details (Carrier)'!D97),\"\",'Your User Details (Carrier)'!D97)","v":""},null,null,null,null,null,null,null,{"$f":"IF(ISBLANK('Your User Details (Carrier)'!E97),\"\",\"Y\")","v":""},{"$f":"IF(ISBLANK('Your User Details (Carrier)'!E97),\"\",\"Underwriter\")","v":""},{"$f":"IF(ISBLANK(Start!$E$26),\"\",Start!$E$26)","v":""},{"$f":"IF(ISBLANK('Your User Details (Carrier)'!E97),\"\",\"Multiple\")","v":""}]
[{"$f":"IF(ISBLANK('Your User Details (Carrier)'!E98),\"\",'Your User Details (Carrier)'!E98)","v":""},{"$f":"IF(ISBLANK('Your User Details (Carrier)'!E98),\"\",\"P@ssw0rd\")","v":""},{"$f":"IF(ISBLANK('Your User Details (Carrier)'!E98),\"\",'Your User Details (Carrier)'!E98)","v":""},{"$f":"IF(ISBLANK('Your User Details (Carrier)'!C98),\"\",'Your User Details (Carrier)'!C98)","v":""},{"$f":"IF(ISBLANK('Your User Details (Carrier)'!D98),\"\",'Your User Details (Carrier)'!D98)","v":""},null,null,null,null,null,null,null,{"$f":"IF(ISBLANK('Your User Details (Carrier)'!E98),\"\",\"Y\")","v":""},{"$f":"IF(ISBLANK('Your User Details (Carrier)'!E98),\"\",\"Underwriter\")","v":""},{"$f":"IF(ISBLANK(Start!$E$26),\"\",Start!$E$26)","v":""},{"$f":"IF(ISBLANK('Your User Details (Carrier)'!E98),\"\",\"Multiple\")","v":""}]
[{"$f":"IF(ISBLANK('Your User Details (Carrier)'!E99),\"\",'Your User Details (Carrier)'!E99)","v":""},{"$f":"IF(ISBLANK('Your User Details (Carrier)'!E99),\"\",\"P@ssw0rd\")","v":""},{"$f":"IF(ISBLANK('Your User Details (Carrier)'!E99),\"\",'Your User Details (Carrier)'!E99)","v":""},{"$f":"IF(ISBLANK('Your User Details (Carrier)'!C99),\"\",'Your User Details (Carrier)'!C99)","v":""},{"$f":"IF(ISBLANK('Your User Details (Carrier)'!D99),\"\",'Your User Details (Carrier)'!D99)","v":""},null,null,null,null,null,null,null,{"$f":"IF(ISBLANK('Your User Details (Carrier)'!E99),\"\",\"Y\")","v":""},{"$f":"IF(ISBLANK('Your User Details (Carrier)'!E99),\"\",\"Underwriter\")","v":""},{"$f":"IF(ISBLANK(Start!$E$26),\"\",Start!$E$26)","v":""},{"$f":"IF(ISBLANK('Your User Details (Carrier)'!E99),\"\",\"Multiple\")","v":""}]
[{"$f":"IF(ISBLANK('Your User Details (Carrier)'!E100),\"\",'Your User Details (Carrier)'!E100)","v":""},{"$f":"IF(ISBLANK('Your User Details (Carrier)'!E100),\"\",\"P@ssw0rd\")","v":""},{"$f":"IF(ISBLANK('Your User Details (Carrier)'!E100),\"\",'Your User Details (Carrier)'!E100)","v":""},{"$f":"IF(ISBLANK('Your User Details (Carrier)'!C100),\"\",'Your User Details (Carrier)'!C100)","v":""},{"$f":"IF(ISBLANK('Your User Details (Carrier)'!D100),\"\",'Your User Details (Carrier)'!D100)","v":""},null,null,null,null,null,null,null,{"$f":"IF(ISBLANK('Your User Details (Carrier)'!E100),\"\",\"Y\")","v":""},{"$f":"IF(ISBLANK('Your User Details (Carrier)'!E100),\"\",\"Underwriter\")","v":""},{"$f":"IF(ISBLANK(Start!$E$26),\"\",Start!$E$26)","v":""},{"$f":"IF(ISBLANK('Your User Details (Carrier)'!E100),\"\",\"Multiple\")","v":""}]
[{"$f":"IF(ISBLANK('Your User Details (Carrier)'!E101),\"\",'Your User Details (Carrier)'!E101)","v":""},{"$f":"IF(ISBLANK('Your User Details (Carrier)'!E101),\"\",\"P@ssw0rd\")","v":""},{"$f":"IF(ISBLANK('Your User Details (Carrier)'!E101),\"\",'Your User Details (Carrier)'!E101)","v":""},{"$f":"IF(ISBLANK('Your User Details (Carrier)'!C101),\"\",'Your User Details (Carrier)'!C101)","v":""},{"$f":"IF(ISBLANK('Your User Details (Carrier)'!D101),\"\",'Your User Details (Carrier)'!D101)","v":""},null,null,null,null,null,null,null,{"$f":"IF(ISBLANK('Your User Details (Carrier)'!E101),\"\",\"Y\")","v":""},{"$f":"IF(ISBLANK('Your User Details (Carrier)'!E101),\"\",\"Underwriter\")","v":""},{"$f":"IF(ISBLANK(Start!$E$26),\"\",Start!$E$26)","v":""},{"$f":"IF(ISBLANK('Your User Details (Carrier)'!E101),\"\",\"Multiple\")","v":""}]
[{"$f":"IF(ISBLANK('Your User Details (Carrier)'!E102),\"\",'Your User Details (Carrier)'!E102)","v":""},{"$f":"IF(ISBLANK('Your User Details (Carrier)'!E102),\"\",\"P@ssw0rd\")","v":""},{"$f":"IF(ISBLANK('Your User Details (Carrier)'!E102),\"\",'Your User Details (Carrier)'!E102)","v":""},{"$f":"IF(ISBLANK('Your User Details (Carrier)'!C102),\"\",'Your User Details (Carrier)'!C102)","v":""},{"$f":"IF(ISBLANK('Your User Details (Carrier)'!D102),\"\",'Your User Details (Carrier)'!D102)","v":""},null,null,null,null,null,null,null,{"$f":"IF(ISBLANK('Your User Details (Carrier)'!E102),\"\",\"Y\")","v":""},{"$f":"IF(ISBLANK('Your User Details (Carrier)'!E102),\"\",\"Underwriter\")","v":""},{"$f":"IF(ISBLANK(Start!$E$26),\"\",Start!$E$26)","v":""},{"$f":"IF(ISBLANK('Your User Details (Carrier)'!E102),\"\",\"Multiple\")","v":""}]
[{"$f":"IF(ISBLANK('Your User Details (Carrier)'!E103),\"\",'Your User Details (Carrier)'!E103)","v":""},{"$f":"IF(ISBLANK('Your User Details (Carrier)'!E103),\"\",\"P@ssw0rd\")","v":""},{"$f":"IF(ISBLANK('Your User Details (Carrier)'!E103),\"\",'Your User Details (Carrier)'!E103)","v":""},{"$f":"IF(ISBLANK('Your User Details (Carrier)'!C103),\"\",'Your User Details (Carrier)'!C103)","v":""},{"$f":"IF(ISBLANK('Your User Details (Carrier)'!D103),\"\",'Your User Details (Carrier)'!D103)","v":""},null,null,null,null,null,null,null,{"$f":"IF(ISBLANK('Your User Details (Carrier)'!E103),\"\",\"Y\")","v":""},{"$f":"IF(ISBLANK('Your User Details (Carrier)'!E103),\"\",\"Underwriter\")","v":""},{"$f":"IF(ISBLANK(Start!$E$26),\"\",Start!$E$26)","v":""},{"$f":"IF(ISBLANK('Your User Details (Carrier)'!E103),\"\",\"Multiple\")","v":""}]
[{"$f":"IF(ISBLANK('Your User Details (Carrier)'!E104),\"\",'Your User Details (Carrier)'!E104)","v":""},{"$f":"IF(ISBLANK('Your User Details (Carrier)'!E104),\"\",\"P@ssw0rd\")","v":""},{"$f":"IF(ISBLANK('Your User Details (Carrier)'!E104),\"\",'Your User Details (Carrier)'!E104)","v":""},{"$f":"IF(ISBLANK('Your User Details (Carrier)'!C104),\"\",'Your User Details (Carrier)'!C104)","v":""},{"$f":"IF(ISBLANK('Your User Details (Carrier)'!D104),\"\",'Your User Details (Carrier)'!D104)","v":""},null,null,null,null,null,null,null,{"$f":"IF(ISBLANK('Your User Details (Carrier)'!E104),\"\",\"Y\")","v":""},{"$f":"IF(ISBLANK('Your User Details (Carrier)'!E104),\"\",\"Underwriter\")","v":""},{"$f":"IF(ISBLANK(Start!$E$26),\"\",Start!$E$26)","v":""},{"$f":"IF(ISBLANK('Your User Details (Carrier)'!E104),\"\",\"Multiple\")","v":""}]
[{"$f":"IF(ISBLANK('Your User Details (Carrier)'!E105),\"\",'Your User Details (Carrier)'!E105)","v":""},{"$f":"IF(ISBLANK('Your User Details (Carrier)'!E105),\"\",\"P@ssw0rd\")","v":""},{"$f":"IF(ISBLANK('Your User Details (Carrier)'!E105),\"\",'Your User Details (Carrier)'!E105)","v":""},{"$f":"IF(ISBLANK('Your User Details (Carrier)'!C105),\"\",'Your User Details (Carrier)'!C105)","v":""},{"$f":"IF(ISBLANK('Your User Details (Carrier)'!D105),\"\",'Your User Details (Carrier)'!D105)","v":""},null,null,null,null,null,null,null,{"$f":"IF(ISBLANK('Your User Details (Carrier)'!E105),\"\",\"Y\")","v":""},{"$f":"IF(ISBLANK('Your User Details (Carrier)'!E105),\"\",\"Underwriter\")","v":""},{"$f":"IF(ISBLANK(Start!$E$26),\"\",Start!$E$26)","v":""},{"$f":"IF(ISBLANK('Your User Details (Carrier)'!E105),\"\",\"Multiple\")","v":""}]
[{"$f":"IF(ISBLANK('Your User Details (Carrier)'!E106),\"\",'Your User Details (Carrier)'!E106)","v":""},{"$f":"IF(ISBLANK('Your User Details (Carrier)'!E106),\"\",\"P@ssw0rd\")","v":""},{"$f":"IF(ISBLANK('Your User Details (Carrier)'!E106),\"\",'Your User Details (Carrier)'!E106)","v":""},{"$f":"IF(ISBLANK('Your User Details (Carrier)'!C106),\"\",'Your User Details (Carrier)'!C106)","v":""},{"$f":"IF(ISBLANK('Your User Details (Carrier)'!D106),\"\",'Your User Details (Carrier)'!D106)","v":""},null,null,null,null,null,null,null,{"$f":"IF(ISBLANK('Your User Details (Carrier)'!E106),\"\",\"Y\")","v":""},{"$f":"IF(ISBLANK('Your User Details (Carrier)'!E106),\"\",\"Underwriter\")","v":""},{"$f":"IF(ISBLANK(Start!$E$26),\"\",Start!$E$26)","v":""},{"$f":"IF(ISBLANK('Your User Details (Carrier)'!E106),\"\",\"Multiple\")","v":""}]
[{"$f":"IF(ISBLANK('Your User Details (Carrier)'!E107),\"\",'Your User Details (Carrier)'!E107)","v":""},{"$f":"IF(ISBLANK('Your User Details (Carrier)'!E107),\"\",\"P@ssw0rd\")","v":""},{"$f":"IF(ISBLANK('Your User Details (Carrier)'!E107),\"\",'Your User Details (Carrier)'!E107)","v":""},{"$f":"IF(ISBLANK('Your User Details (Carrier)'!C107),\"\",'Your User Details (Carrier)'!C107)","v":""},{"$f":"IF(ISBLANK('Your User Details (Carrier)'!D107),\"\",'Your User Details (Carrier)'!D107)","v":""},null,null,null,null,null,null,null,{"$f":"IF(ISBLANK('Your User Details (Carrier)'!E107),\"\",\"Y\")","v":""},{"$f":"IF(ISBLANK('Your User Details (Carrier)'!E107),\"\",\"Underwriter\")","v":""},{"$f":"IF(ISBLANK(Start!$E$26),\"\",Start!$E$26)","v":""},{"$f":"IF(ISBLANK('Your User Details (Carrier)'!E107),\"\",\"Multiple\")","v":""}]
[{"$f":"IF(ISBLANK('Your User Details (Carrier)'!E108),\"\",'Your User Details (Carrier)'!E108)","v":""},{"$f":"IF(ISBLANK('Your User Details (Carrier)'!E108),\"\",\"P@ssw0rd\")","v":""},{"$f":"IF(ISBLANK('Your User Details (Carrier)'!E108),\"\",'Your User Details (Carrier)'!E108)","v":""},{"$f":"IF(ISBLANK('Your User Details (Carrier)'!C108),\"\",'Your User Details (Carrier)'!C108)","v":""},{"$f":"IF(ISBLANK('Your User Details (Carrier)'!D108),\"\",'Your User Details (Carrier)'!D108)","v":""},null,null,null,null,null,null,null,{"$f":"IF(ISBLANK('Your User Details (Carrier)'!E108),\"\",\"Y\")","v":""},{"$f":"IF(ISBLANK('Your User Details (Carrier)'!E108),\"\",\"Underwriter\")","v":""},{"$f":"IF(ISBLANK(Start!$E$26),\"\",Start!$E$26)","v":""},{"$f":"IF(ISBLANK('Your User Details (Carrier)'!E108),\"\",\"Multiple\")","v":""}]
[{"$f":"IF(ISBLANK('Your User Details (Carrier)'!E109),\"\",'Your User Details (Carrier)'!E109)","v":""},{"$f":"IF(ISBLANK('Your User Details (Carrier)'!E109),\"\",\"P@ssw0rd\")","v":""},{"$f":"IF(ISBLANK('Your User Details (Carrier)'!E109),\"\",'Your User Details (Carrier)'!E109)","v":""},{"$f":"IF(ISBLANK('Your User Details (Carrier)'!C109),\"\",'Your User Details (Carrier)'!C109)","v":""},{"$f":"IF(ISBLANK('Your User Details (Carrier)'!D109),\"\",'Your User Details (Carrier)'!D109)","v":""},null,null,null,null,null,null,null,{"$f":"IF(ISBLANK('Your User Details (Carrier)'!E109),\"\",\"Y\")","v":""},{"$f":"IF(ISBLANK('Your User Details (Carrier)'!E109),\"\",\"Underwriter\")","v":""},{"$f":"IF(ISBLANK(Start!$E$26),\"\",Start!$E$26)","v":""},{"$f":"IF(ISBLANK('Your User Details (Carrier)'!E109),\"\",\"Multiple\")","v":""}]
[{"$f":"IF(ISBLANK('Your User Details (Carrier)'!E110),\"\",'Your User Details (Carrier)'!E110)","v":""},{"$f":"IF(ISBLANK('Your User Details (Carrier)'!E110),\"\",\"P@ssw0rd\")","v":""},{"$f":"IF(ISBLANK('Your User Details (Carrier)'!E110),\"\",'Your User Details (Carrier)'!E110)","v":""},{"$f":"IF(ISBLANK('Your User Details (Carrier)'!C110),\"\",'Your User Details (Carrier)'!C110)","v":""},{"$f":"IF(ISBLANK('Your User Details (Carrier)'!D110),\"\",'Your User Details (Carrier)'!D110)","v":""},null,null,null,null,null,null,null,{"$f":"IF(ISBLANK('Your User Details (Carrier)'!E110),\"\",\"Y\")","v":""},{"$f":"IF(ISBLANK('Your User Details (Carrier)'!E110),\"\",\"Underwriter\")","v":""},{"$f":"IF(ISBLANK(Start!$E$26),\"\",Start!$E$26)","v":""},{"$f":"IF(ISBLANK('Your User Details (Carrier)'!E110),\"\",\"Multiple\")","v":""}]
[{"$f":"IF(ISBLANK('Your User Details (Carrier)'!E111),\"\",'Your User Details (Carrier)'!E111)","v":""},{"$f":"IF(ISBLANK('Your User Details (Carrier)'!E111),\"\",\"P@ssw0rd\")","v":""},{"$f":"IF(ISBLANK('Your User Details (Carrier)'!E111),\"\",'Your User Details (Carrier)'!E111)","v":""},{"$f":"IF(ISBLANK('Your User Details (Carrier)'!C111),\"\",'Your User Details (Carrier)'!C111)","v":""},{"$f":"IF(ISBLANK('Your User Details (Carrier)'!D111),\"\",'Your User Details (Carrier)'!D111)","v":""},null,null,null,null,null,null,null,{"$f":"IF(ISBLANK('Your User Details (Carrier)'!E111),\"\",\"Y\")","v":""},{"$f":"IF(ISBLANK('Your User Details (Carrier)'!E111),\"\",\"Underwriter\")","v":""},{"$f":"IF(ISBLANK(Start!$E$26),\"\",Start!$E$26)","v":""},{"$f":"IF(ISBLANK('Your User Details (Carrier)'!E111),\"\",\"Multiple\")","v":""}]
[{"$f":"IF(ISBLANK('Your User Details (Carrier)'!E112),\"\",'Your User Details (Carrier)'!E112)","v":""},{"$f":"IF(ISBLANK('Your User Details (Carrier)'!E112),\"\",\"P@ssw0rd\")","v":""},{"$f":"IF(ISBLANK('Your User Details (Carrier)'!E112),\"\",'Your User Details (Carrier)'!E112)","v":""},{"$f":"IF(ISBLANK('Your User Details (Carrier)'!C112),\"\",'Your User Details (Carrier)'!C112)","v":""},{"$f":"IF(ISBLANK('Your User Details (Carrier)'!D112),\"\",'Your User Details (Carrier)'!D112)","v":""},null,null,null,null,null,null,null,{"$f":"IF(ISBLANK('Your User Details (Carrier)'!E112),\"\",\"Y\")","v":""},{"$f":"IF(ISBLANK('Your User Details (Carrier)'!E112),\"\",\"Underwriter\")","v":""},{"$f":"IF(ISBLANK(Start!$E$26),\"\",Start!$E$26)","v":""},{"$f":"IF(ISBLANK('Your User Details (Carrier)'!E112),\"\",\"Multiple\")","v":""}]
[{"$f":"IF(ISBLANK('Your User Details (Carrier)'!E113),\"\",'Your User Details (Carrier)'!E113)","v":""},{"$f":"IF(ISBLANK('Your User Details (Carrier)'!E113),\"\",\"P@ssw0rd\")","v":""},{"$f":"IF(ISBLANK('Your User Details (Carrier)'!E113),\"\",'Your User Details (Carrier)'!E113)","v":""},{"$f":"IF(ISBLANK('Your User Details (Carrier)'!C113),\"\",'Your User Details (Carrier)'!C113)","v":""},{"$f":"IF(ISBLANK('Your User Details (Carrier)'!D113),\"\",'Your User Details (Carrier)'!D113)","v":""},null,null,null,null,null,null,null,{"$f":"IF(ISBLANK('Your User Details (Carrier)'!E113),\"\",\"Y\")","v":""},{"$f":"IF(ISBLANK('Your User Details (Carrier)'!E113),\"\",\"Underwriter\")","v":""},{"$f":"IF(ISBLANK(Start!$E$26),\"\",Start!$E$26)","v":""},{"$f":"IF(ISBLANK('Your User Details (Carrier)'!E113),\"\",\"Multiple\")","v":""}]
[{"$f":"IF(ISBLANK('Your User Details (Carrier)'!E114),\"\",'Your User Details (Carrier)'!E114)","v":""},{"$f":"IF(ISBLANK('Your User Details (Carrier)'!E114),\"\",\"P@ssw0rd\")","v":""},{"$f":"IF(ISBLANK('Your User Details (Carrier)'!E114),\"\",'Your User Details (Carrier)'!E114)","v":""},{"$f":"IF(ISBLANK('Your User Details (Carrier)'!C114),\"\",'Your User Details (Carrier)'!C114)","v":""},{"$f":"IF(ISBLANK('Your User Details (Carrier)'!D114),\"\",'Your User Details (Carrier)'!D114)","v":""},null,null,null,null,null,null,null,{"$f":"IF(ISBLANK('Your User Details (Carrier)'!E114),\"\",\"Y\")","v":""},{"$f":"IF(ISBLANK('Your User Details (Carrier)'!E114),\"\",\"Underwriter\")","v":""},{"$f":"IF(ISBLANK(Start!$E$26),\"\",Start!$E$26)","v":""},{"$f":"IF(ISBLANK('Your User Details (Carrier)'!E114),\"\",\"Multiple\")","v":""}]
[{"$f":"IF(ISBLANK('Your User Details (Carrier)'!E115),\"\",'Your User Details (Carrier)'!E115)","v":""},{"$f":"IF(ISBLANK('Your User Details (Carrier)'!E115),\"\",\"P@ssw0rd\")","v":""},{"$f":"IF(ISBLANK('Your User Details (Carrier)'!E115),\"\",'Your User Details (Carrier)'!E115)","v":""},{"$f":"IF(ISBLANK('Your User Details (Carrier)'!C115),\"\",'Your User Details (Carrier)'!C115)","v":""},{"$f":"IF(ISBLANK('Your User Details (Carrier)'!D115),\"\",'Your User Details (Carrier)'!D115)","v":""},null,null,null,null,null,null,null,{"$f":"IF(ISBLANK('Your User Details (Carrier)'!E115),\"\",\"Y\")","v":""},{"$f":"IF(ISBLANK('Your User Details (Carrier)'!E115),\"\",\"Underwriter\")","v":""},{"$f":"IF(ISBLANK(Start!$E$26),\"\",Start!$E$26)","v":""},{"$f":"IF(ISBLANK('Your User Details (Carrier)'!E115),\"\",\"Multiple\")","v":""}]
[{"$f":"IF(ISBLANK('Your User Details (Carrier)'!E116),\"\",'Your User Details (Carrier)'!E116)","v":""},{"$f":"IF(ISBLANK('Your User Details (Carrier)'!E116),\"\",\"P@ssw0rd\")","v":""},{"$f":"IF(ISBLANK('Your User Details (Carrier)'!E116),\"\",'Your User Details (Carrier)'!E116)","v":""},{"$f":"IF(ISBLANK('Your User Details (Carrier)'!C116),\"\",'Your User Details (Carrier)'!C116)","v":""},{"$f":"IF(ISBLANK('Your User Details (Carrier)'!D116),\"\",'Your User Details (Carrier)'!D116)","v":""},null,null,null,null,null,null,null,{"$f":"IF(ISBLANK('Your User Details (Carrier)'!E116),\"\",\"Y\")","v":""},{"$f":"IF(ISBLANK('Your User Details (Carrier)'!E116),\"\",\"Underwriter\")","v":""},{"$f":"IF(ISBLANK(Start!$E$26),\"\",Start!$E$26)","v":""},{"$f":"IF(ISBLANK('Your User Details (Carrier)'!E116),\"\",\"Multiple\")","v":""}]
[{"$f":"IF(ISBLANK('Your User Details (Carrier)'!E117),\"\",'Your User Details (Carrier)'!E117)","v":""},{"$f":"IF(ISBLANK('Your User Details (Carrier)'!E117),\"\",\"P@ssw0rd\")","v":""},{"$f":"IF(ISBLANK('Your User Details (Carrier)'!E117),\"\",'Your User Details (Carrier)'!E117)","v":""},{"$f":"IF(ISBLANK('Your User Details (Carrier)'!C117),\"\",'Your User Details (Carrier)'!C117)","v":""},{"$f":"IF(ISBLANK('Your User Details (Carrier)'!D117),\"\",'Your User Details (Carrier)'!D117)","v":""},null,null,null,null,null,null,null,{"$f":"IF(ISBLANK('Your User Details (Carrier)'!E117),\"\",\"Y\")","v":""},{"$f":"IF(ISBLANK('Your User Details (Carrier)'!E117),\"\",\"Underwriter\")","v":""},{"$f":"IF(ISBLANK(Start!$E$26),\"\",Start!$E$26)","v":""},{"$f":"IF(ISBLANK('Your User Details (Carrier)'!E117),\"\",\"Multiple\")","v":""}]
[{"$f":"IF(ISBLANK('Your User Details (Carrier)'!E118),\"\",'Your User Details (Carrier)'!E118)","v":""},{"$f":"IF(ISBLANK('Your User Details (Carrier)'!E118),\"\",\"P@ssw0rd\")","v":""},{"$f":"IF(ISBLANK('Your User Details (Carrier)'!E118),\"\",'Your User Details (Carrier)'!E118)","v":""},{"$f":"IF(ISBLANK('Your User Details (Carrier)'!C118),\"\",'Your User Details (Carrier)'!C118)","v":""},{"$f":"IF(ISBLANK('Your User Details (Carrier)'!D118),\"\",'Your User Details (Carrier)'!D118)","v":""},null,null,null,null,null,null,null,{"$f":"IF(ISBLANK('Your User Details (Carrier)'!E118),\"\",\"Y\")","v":""},{"$f":"IF(ISBLANK('Your User Details (Carrier)'!E118),\"\",\"Underwriter\")","v":""},{"$f":"IF(ISBLANK(Start!$E$26),\"\",Start!$E$26)","v":""},{"$f":"IF(ISBLANK('Your User Details (Carrier)'!E118),\"\",\"Multiple\")","v":""}]
[{"$f":"IF(ISBLANK('Your User Details (Carrier)'!E119),\"\",'Your User Details (Carrier)'!E119)","v":""},{"$f":"IF(ISBLANK('Your User Details (Carrier)'!E119),\"\",\"P@ssw0rd\")","v":""},{"$f":"IF(ISBLANK('Your User Details (Carrier)'!E119),\"\",'Your User Details (Carrier)'!E119)","v":""},{"$f":"IF(ISBLANK('Your User Details (Carrier)'!C119),\"\",'Your User Details (Carrier)'!C119)","v":""},{"$f":"IF(ISBLANK('Your User Details (Carrier)'!D119),\"\",'Your User Details (Carrier)'!D119)","v":""},null,null,null,null,null,null,null,{"$f":"IF(ISBLANK('Your User Details (Carrier)'!E119),\"\",\"Y\")","v":""},{"$f":"IF(ISBLANK('Your User Details (Carrier)'!E119),\"\",\"Underwriter\")","v":""},{"$f":"IF(ISBLANK(Start!$E$26),\"\",Start!$E$26)","v":""},{"$f":"IF(ISBLANK('Your User Details (Carrier)'!E119),\"\",\"Multiple\")","v":""}]
[{"$f":"IF(ISBLANK('Your User Details (Carrier)'!E120),\"\",'Your User Details (Carrier)'!E120)","v":""},{"$f":"IF(ISBLANK('Your User Details (Carrier)'!E120),\"\",\"P@ssw0rd\")","v":""},{"$f":"IF(ISBLANK('Your User Details (Carrier)'!E120),\"\",'Your User Details (Carrier)'!E120)","v":""},{"$f":"IF(ISBLANK('Your User Details (Carrier)'!C120),\"\",'Your User Details (Carrier)'!C120)","v":""},{"$f":"IF(ISBLANK('Your User Details (Carrier)'!D120),\"\",'Your User Details (Carrier)'!D120)","v":""},null,null,null,null,null,null,null,{"$f":"IF(ISBLANK('Your User Details (Carrier)'!E120),\"\",\"Y\")","v":""},{"$f":"IF(ISBLANK('Your User Details (Carrier)'!E120),\"\",\"Underwriter\")","v":""},{"$f":"IF(ISBLANK(Start!$E$26),\"\",Start!$E$26)","v":""},{"$f":"IF(ISBLANK('Your User Details (Carrier)'!E120),\"\",\"Multiple\")","v":""}]
[{"$f":"IF(ISBLANK('Your User Details (Carrier)'!E121),\"\",'Your User Details (Carrier)'!E121)","v":""},{"$f":"IF(ISBLANK('Your User Details (Carrier)'!E121),\"\",\"P@ssw0rd\")","v":""},{"$f":"IF(ISBLANK('Your User Details (Carrier)'!E121),\"\",'Your User Details (Carrier)'!E121)","v":""},{"$f":"IF(ISBLANK('Your User Details (Carrier)'!C121),\"\",'Your User Details (Carrier)'!C121)","v":""},{"$f":"IF(ISBLANK('Your User Details (Carrier)'!D121),\"\",'Your User Details (Carrier)'!D121)","v":""},null,null,null,null,null,null,null,{"$f":"IF(ISBLANK('Your User Details (Carrier)'!E121),\"\",\"Y\")","v":""},{"$f":"IF(ISBLANK('Your User Details (Carrier)'!E121),\"\",\"Underwriter\")","v":""},{"$f":"IF(ISBLANK(Start!$E$26),\"\",Start!$E$26)","v":""},{"$f":"IF(ISBLANK('Your User Details (Carrier)'!E121),\"\",\"Multiple\")","v":""}]
[{"$f":"IF(ISBLANK('Your User Details (Carrier)'!E122),\"\",'Your User Details (Carrier)'!E122)","v":""},{"$f":"IF(ISBLANK('Your User Details (Carrier)'!E122),\"\",\"P@ssw0rd\")","v":""},{"$f":"IF(ISBLANK('Your User Details (Carrier)'!E122),\"\",'Your User Details (Carrier)'!E122)","v":""},{"$f":"IF(ISBLANK('Your User Details (Carrier)'!C122),\"\",'Your User Details (Carrier)'!C122)","v":""},{"$f":"IF(ISBLANK('Your User Details (Carrier)'!D122),\"\",'Your User Details (Carrier)'!D122)","v":""},null,null,null,null,null,null,null,{"$f":"IF(ISBLANK('Your User Details (Carrier)'!E122),\"\",\"Y\")","v":""},{"$f":"IF(ISBLANK('Your User Details (Carrier)'!E122),\"\",\"Underwriter\")","v":""},{"$f":"IF(ISBLANK(Start!$E$26),\"\",Start!$E$26)","v":""},{"$f":"IF(ISBLANK('Your User Details (Carrier)'!E122),\"\",\"Multiple\")","v":""}]
[{"$f":"IF(ISBLANK('Your User Details (Carrier)'!E123),\"\",'Your User Details (Carrier)'!E123)","v":""},{"$f":"IF(ISBLANK('Your User Details (Carrier)'!E123),\"\",\"P@ssw0rd\")","v":""},{"$f":"IF(ISBLANK('Your User Details (Carrier)'!E123),\"\",'Your User Details (Carrier)'!E123)","v":""},{"$f":"IF(ISBLANK('Your User Details (Carrier)'!C123),\"\",'Your User Details (Carrier)'!C123)","v":""},{"$f":"IF(ISBLANK('Your User Details (Carrier)'!D123),\"\",'Your User Details (Carrier)'!D123)","v":""},null,null,null,null,null,null,null,{"$f":"IF(ISBLANK('Your User Details (Carrier)'!E123),\"\",\"Y\")","v":""},{"$f":"IF(ISBLANK('Your User Details (Carrier)'!E123),\"\",\"Underwriter\")","v":""},{"$f":"IF(ISBLANK(Start!$E$26),\"\",Start!$E$26)","v":""},{"$f":"IF(ISBLANK('Your User Details (Carrier)'!E123),\"\",\"Multiple\")","v":""}]

{"sheet":"LMS Upload (Broker)","index":4,"n_rows":51,"n_cols":16,"rows_kept":51,"cut":false,"hidden":true,"merged":[]}
["LoginId","Password","EmailAddress","FirstName","LastName","AddressLine1","AddressLine2","City","State","Country","PostalCode","ContactNumber","IsActive","Broker or Underwriter","Organisation","Class of Business"]
[{"$f":"IF(ISBLANK('Your User Details (Broker)'!E56),\"\",'Your User Details (Broker)'!E56)","v":""},{"$f":"IF(ISBLANK('Your User Details (Broker)'!E56),\"\",\"P@ssw0rd\")","v":""},{"$f":"IF(ISBLANK('Your User Details (Broker)'!E56),\"\",'Your User Details (Broker)'!E56)","v":""},{"$f":"IF(ISBLANK('Your User Details (Broker)'!C56),\"\",'Your User Details (Broker)'!C56)","v":""},{"$f":"IF(ISBLANK('Your User Details (Broker)'!D56),\"\",'Your User Details (Broker)'!D56)","v":""},null,null,null,null,null,null,null,{"$f":"IF(ISBLANK('Your User Details (Broker)'!E56),\"\",\"Y\")","v":""},{"$f":"IF(ISBLANK('Your User Details (Broker)'!E56),\"\",\"Broker\")","v":""},{"$f":"IF(ISBLANK(Start!$E$26),\"\",Start!$E$26)","v":""},{"$f":"IF(ISBLANK('Your User Details (Broker)'!E56),\"\",\"Multiple\")","v":""}]
[{"$f":"IF(ISBLANK('Your User Details (Broker)'!E57),\"\",'Your User Details (Broker)'!E57)","v":""},{"$f":"IF(ISBLANK('Your User Details (Broker)'!E57),\"\",\"P@ssw0rd\")","v":""},{"$f":"IF(ISBLANK('Your User Details (Broker)'!E57),\"\",'Your User Details (Broker)'!E57)","v":""},{"$f":"IF(ISBLANK('Your User Details (Broker)'!C57),\"\",'Your User Details (Broker)'!C57)","v":""},{"$f":"IF(ISBLANK('Your User Details (Broker)'!D57),\"\",'Your User Details (Broker)'!D57)","v":""},null,null,null,null,null,null,null,{"$f":"IF(ISBLANK('Your User Details (Broker)'!E57),\"\",\"Y\")","v":""},{"$f":"IF(ISBLANK('Your User Details (Broker)'!E57),\"\",\"Broker\")","v":""},{"$f":"IF(ISBLANK(Start!$E$26),\"\",Start!$E$26)","v":""},{"$f":"IF(ISBLANK('Your User Details (Broker)'!E57),\"\",\"Multiple\")","v":""}]
[{"$f":"IF(ISBLANK('Your User Details (Broker)'!E58),\"\",'Your User Details (Broker)'!E58)","v":""},{"$f":"IF(ISBLANK('Your User Details (Broker)'!E58),\"\",\"P@ssw0rd\")","v":""},{"$f":"IF(ISBLANK('Your User Details (Broker)'!E58),\"\",'Your User Details (Broker)'!E58)","v":""},{"$f":"IF(ISBLANK('Your User Details (Broker)'!C58),\"\",'Your User Details (Broker)'!C58)","v":""},{"$f":"IF(ISBLANK('Your User Details (Broker)'!D58),\"\",'Your User Details (Broker)'!D58)","v":""},null,null,null,null,null,null,null,{"$f":"IF(ISBLANK('Your User Details (Broker)'!E58),\"\",\"Y\")","v":""},{"$f":"IF(ISBLANK('Your User Details (Broker)'!E58),\"\",\"Broker\")","v":""},{"$f":"IF(ISBLANK(Start!$E$26),\"\",Start!$E$26)","v":""},{"$f":"IF(ISBLANK('Your User Details (Broker)'!E58),\"\",\"Multiple\")","v":""}]
[{"$f":"IF(ISBLANK('Your User Details (Broker)'!E59),\"\",'Your User Details (Broker)'!E59)","v":""},{"$f":"IF(ISBLANK('Your User Details (Broker)'!E59),\"\",\"P@ssw0rd\")","v":""},{"$f":"IF(ISBLANK('Your User Details (Broker)'!E59),\"\",'Your User Details (Broker)'!E59)","v":""},{"$f":"IF(ISBLANK('Your User Details (Broker)'!C59),\"\",'Your User Details (Broker)'!C59)","v":""},{"$f":"IF(ISBLANK('Your User Details (Broker)'!D59),\"\",'Your User Details (Broker)'!D59)","v":""},null,null,null,null,null,null,null,{"$f":"IF(ISBLANK('Your User Details (Broker)'!E59),\"\",\"Y\")","v":""},{"$f":"IF(ISBLANK('Your User Details (Broker)'!E59),\"\",\"Broker\")","v":""},{"$f":"IF(ISBLANK(Start!$E$26),\"\",Start!$E$26)","v":""},{"$f":"IF(ISBLANK('Your User Details (Broker)'!E59),\"\",\"Multiple\")","v":""}]
[{"$f":"IF(ISBLANK('Your User Details (Broker)'!E60),\"\",'Your User Details (Broker)'!E60)","v":""},{"$f":"IF(ISBLANK('Your User Details (Broker)'!E60),\"\",\"P@ssw0rd\")","v":""},{"$f":"IF(ISBLANK('Your User Details (Broker)'!E60),\"\",'Your User Details (Broker)'!E60)","v":""},{"$f":"IF(ISBLANK('Your User Details (Broker)'!C60),\"\",'Your User Details (Broker)'!C60)","v":""},{"$f":"IF(ISBLANK('Your User Details (Broker)'!D60),\"\",'Your User Details (Broker)'!D60)","v":""},null,null,null,null,null,null,null,{"$f":"IF(ISBLANK('Your User Details (Broker)'!E60),\"\",\"Y\")","v":""},{"$f":"IF(ISBLANK('Your User Details (Broker)'!E60),\"\",\"Broker\")","v":""},{"$f":"IF(ISBLANK(Start!$E$26),\"\",Start!$E$26)","v":""},{"$f":"IF(ISBLANK('Your User Details (Broker)'!E60),\"\",\"Multiple\")","v":""}]
[{"$f":"IF(ISBLANK('Your User Details (Broker)'!E61),\"\",'Your User Details (Broker)'!E61)","v":""},{"$f":"IF(ISBLANK('Your User Details (Broker)'!E61),\"\",\"P@ssw0rd\")","v":""},{"$f":"IF(ISBLANK('Your User Details (Broker)'!E61),\"\",'Your User Details (Broker)'!E61)","v":""},{"$f":"IF(ISBLANK('Your User Details (Broker)'!C61),\"\",'Your User Details (Broker)'!C61)","v":""},{"$f":"IF(ISBLANK('Your User Details (Broker)'!D61),\"\",'Your User Details (Broker)'!D61)","v":""},null,null,null,null,null,null,null,{"$f":"IF(ISBLANK('Your User Details (Broker)'!E61),\"\",\"Y\")","v":""},{"$f":"IF(ISBLANK('Your User Details (Broker)'!E61),\"\",\"Broker\")","v":""},{"$f":"IF(ISBLANK(Start!$E$26),\"\",Start!$E$26)","v":""},{"$f":"IF(ISBLANK('Your User Details (Broker)'!E61),\"\",\"Multiple\")","v":""}]
[{"$f":"IF(ISBLANK('Your User Details (Broker)'!E62),\"\",'Your User Details (Broker)'!E62)","v":""},{"$f":"IF(ISBLANK('Your User Details (Broker)'!E62),\"\",\"P@ssw0rd\")","v":""},{"$f":"IF(ISBLANK('Your User Details (Broker)'!E62),\"\",'Your User Details (Broker)'!E62)","v":""},{"$f":"IF(ISBLANK('Your User Details (Broker)'!C62),\"\",'Your User Details (Broker)'!C62)","v":""},{"$f":"IF(ISBLANK('Your User Details (Broker)'!D62),\"\",'Your User Details (Broker)'!D62)","v":""},null,null,null,null,null,null,null,{"$f":"IF(ISBLANK('Your User Details (Broker)'!E62),\"\",\"Y\")","v":""},{"$f":"IF(ISBLANK('Your User Details (Broker)'!E62),\"\",\"Broker\")","v":""},{"$f":"IF(ISBLANK(Start!$E$26),\"\",Start!$E$26)","v":""},{"$f":"IF(ISBLANK('Your User Details (Broker)'!E62),\"\",\"Multiple\")","v":""}]
[{"$f":"IF(ISBLANK('Your User Details (Broker)'!E63),\"\",'Your User Details (Broker)'!E63)","v":""},{"$f":"IF(ISBLANK('Your User Details (Broker)'!E63),\"\",\"P@ssw0rd\")","v":""},{"$f":"IF(ISBLANK('Your User Details (Broker)'!E63),\"\",'Your User Details (Broker)'!E63)","v":""},{"$f":"IF(ISBLANK('Your User Details (Broker)'!C63),\"\",'Your User Details (Broker)'!C63)","v":""},{"$f":"IF(ISBLANK('Your User Details (Broker)'!D63),\"\",'Your User Details (Broker)'!D63)","v":""},null,null,null,null,null,null,null,{"$f":"IF(ISBLANK('Your User Details (Broker)'!E63),\"\",\"Y\")","v":""},{"$f":"IF(ISBLANK('Your User Details (Broker)'!E63),\"\",\"Broker\")","v":""},{"$f":"IF(ISBLANK(Start!$E$26),\"\",Start!$E$26)","v":""},{"$f":"IF(ISBLANK('Your User Details (Broker)'!E63),\"\",\"Multiple\")","v":""}]
[{"$f":"IF(ISBLANK('Your User Details (Broker)'!E64),\"\",'Your User Details (Broker)'!E64)","v":""},{"$f":"IF(ISBLANK('Your User Details (Broker)'!E64),\"\",\"P@ssw0rd\")","v":""},{"$f":"IF(ISBLANK('Your User Details (Broker)'!E64),\"\",'Your User Details (Broker)'!E64)","v":""},{"$f":"IF(ISBLANK('Your User Details (Broker)'!C64),\"\",'Your User Details (Broker)'!C64)","v":""},{"$f":"IF(ISBLANK('Your User Details (Broker)'!D64),\"\",'Your User Details (Broker)'!D64)","v":""},null,null,null,null,null,null,null,{"$f":"IF(ISBLANK('Your User Details (Broker)'!E64),\"\",\"Y\")","v":""},{"$f":"IF(ISBLANK('Your User Details (Broker)'!E64),\"\",\"Broker\")","v":""},{"$f":"IF(ISBLANK(Start!$E$26),\"\",Start!$E$26)","v":""},{"$f":"IF(ISBLANK('Your User Details (Broker)'!E64),\"\",\"Multiple\")","v":""}]
[{"$f":"IF(ISBLANK('Your User Details (Broker)'!E65),\"\",'Your User Details (Broker)'!E65)","v":""},{"$f":"IF(ISBLANK('Your User Details (Broker)'!E65),\"\",\"P@ssw0rd\")","v":""},{"$f":"IF(ISBLANK('Your User Details (Broker)'!E65),\"\",'Your User Details (Broker)'!E65)","v":""},{"$f":"IF(ISBLANK('Your User Details (Broker)'!C65),\"\",'Your User Details (Broker)'!C65)","v":""},{"$f":"IF(ISBLANK('Your User Details (Broker)'!D65),\"\",'Your User Details (Broker)'!D65)","v":""},null,null,null,null,null,null,null,{"$f":"IF(ISBLANK('Your User Details (Broker)'!E65),\"\",\"Y\")","v":""},{"$f":"IF(ISBLANK('Your User Details (Broker)'!E65),\"\",\"Broker\")","v":""},{"$f":"IF(ISBLANK(Start!$E$26),\"\",Start!$E$26)","v":""},{"$f":"IF(ISBLANK('Your User Details (Broker)'!E65),\"\",\"Multiple\")","v":""}]
[{"$f":"IF(ISBLANK('Your User Details (Broker)'!E66),\"\",'Your User Details (Broker)'!E66)","v":""},{"$f":"IF(ISBLANK('Your User Details (Broker)'!E66),\"\",\"P@ssw0rd\")","v":""},{"$f":"IF(ISBLANK('Your User Details (Broker)'!E66),\"\",'Your User Details (Broker)'!E66)","v":""},{"$f":"IF(ISBLANK('Your User Details (Broker)'!C66),\"\",'Your User Details (Broker)'!C66)","v":""},{"$f":"IF(ISBLANK('Your User Details (Broker)'!D66),\"\",'Your User Details (Broker)'!D66)","v":""},null,null,null,null,null,null,null,{"$f":"IF(ISBLANK('Your User Details (Broker)'!E66),\"\",\"Y\")","v":""},{"$f":"IF(ISBLANK('Your User Details (Broker)'!E66),\"\",\"Broker\")","v":""},{"$f":"IF(ISBLANK(Start!$E$26),\"\",Start!$E$26)","v":""},{"$f":"IF(ISBLANK('Your User Details (Broker)'!E66),\"\",\"Multiple\")","v":""}]
[{"$f":"IF(ISBLANK('Your User Details (Broker)'!E67),\"\",'Your User Details (Broker)'!E67)","v":""},{"$f":"IF(ISBLANK('Your User Details (Broker)'!E67),\"\",\"P@ssw0rd\")","v":""},{"$f":"IF(ISBLANK('Your User Details (Broker)'!E67),\"\",'Your User Details (Broker)'!E67)","v":""},{"$f":"IF(ISBLANK('Your User Details (Broker)'!C67),\"\",'Your User Details (Broker)'!C67)","v":""},{"$f":"IF(ISBLANK('Your User Details (Broker)'!D67),\"\",'Your User Details (Broker)'!D67)","v":""},null,null,null,null,null,null,null,{"$f":"IF(ISBLANK('Your User Details (Broker)'!E67),\"\",\"Y\")","v":""},{"$f":"IF(ISBLANK('Your User Details (Broker)'!E67),\"\",\"Broker\")","v":""},{"$f":"IF(ISBLANK(Start!$E$26),\"\",Start!$E$26)","v":""},{"$f":"IF(ISBLANK('Your User Details (Broker)'!E67),\"\",\"Multiple\")","v":""}]
[{"$f":"IF(ISBLANK('Your User Details (Broker)'!E68),\"\",'Your User Details (Broker)'!E68)","v":""},{"$f":"IF(ISBLANK('Your User Details (Broker)'!E68),\"\",\"P@ssw0rd\")","v":""},{"$f":"IF(ISBLANK('Your User Details (Broker)'!E68),\"\",'Your User Details (Broker)'!E68)","v":""},{"$f":"IF(ISBLANK('Your User Details (Broker)'!C68),\"\",'Your User Details (Broker)'!C68)","v":""},{"$f":"IF(ISBLANK('Your User Details (Broker)'!D68),\"\",'Your User Details (Broker)'!D68)","v":""},null,null,null,null,null,null,null,{"$f":"IF(ISBLANK('Your User Details (Broker)'!E68),\"\",\"Y\")","v":""},{"$f":"IF(ISBLANK('Your User Details (Broker)'!E68),\"\",\"Broker\")","v":""},{"$f":"IF(ISBLANK(Start!$E$26),\"\",Start!$E$26)","v":""},{"$f":"IF(ISBLANK('Your User Details (Broker)'!E68),\"\",\"Multiple\")","v":""}]
[{"$f":"IF(ISBLANK('Your User Details (Broker)'!E69),\"\",'Your User Details (Broker)'!E69)","v":""},{"$f":"IF(ISBLANK('Your User Details (Broker)'!E69),\"\",\"P@ssw0rd\")","v":""},{"$f":"IF(ISBLANK('Your User Details (Broker)'!E69),\"\",'Your User Details (Broker)'!E69)","v":""},{"$f":"IF(ISBLANK('Your User Details (Broker)'!C69),\"\",'Your User Details (Broker)'!C69)","v":""},{"$f":"IF(ISBLANK('Your User Details (Broker)'!D69),\"\",'Your User Details (Broker)'!D69)","v":""},null,null,null,null,null,null,null,{"$f":"IF(ISBLANK('Your User Details (Broker)'!E69),\"\",\"Y\")","v":""},{"$f":"IF(ISBLANK('Your User Details (Broker)'!E69),\"\",\"Broker\")","v":""},{"$f":"IF(ISBLANK(Start!$E$26),\"\",Start!$E$26)","v":""},{"$f":"IF(ISBLANK('Your User Details (Broker)'!E69),\"\",\"Multiple\")","v":""}]
[{"$f":"IF(ISBLANK('Your User Details (Broker)'!E70),\"\",'Your User Details (Broker)'!E70)","v":""},{"$f":"IF(ISBLANK('Your User Details (Broker)'!E70),\"\",\"P@ssw0rd\")","v":""},{"$f":"IF(ISBLANK('Your User Details (Broker)'!E70),\"\",'Your User Details (Broker)'!E70)","v":""},{"$f":"IF(ISBLANK('Your User Details (Broker)'!C70),\"\",'Your User Details (Broker)'!C70)","v":""},{"$f":"IF(ISBLANK('Your User Details (Broker)'!D70),\"\",'Your User Details (Broker)'!D70)","v":""},null,null,null,null,null,null,null,{"$f":"IF(ISBLANK('Your User Details (Broker)'!E70),\"\",\"Y\")","v":""},{"$f":"IF(ISBLANK('Your User Details (Broker)'!E70),\"\",\"Broker\")","v":""},{"$f":"IF(ISBLANK(Start!$E$26),\"\",Start!$E$26)","v":""},{"$f":"IF(ISBLANK('Your User Details (Broker)'!E70),\"\",\"Multiple\")","v":""}]
[{"$f":"IF(ISBLANK('Your User Details (Broker)'!E71),\"\",'Your User Details (Broker)'!E71)","v":""},{"$f":"IF(ISBLANK('Your User Details (Broker)'!E71),\"\",\"P@ssw0rd\")","v":""},{"$f":"IF(ISBLANK('Your User Details (Broker)'!E71),\"\",'Your User Details (Broker)'!E71)","v":""},{"$f":"IF(ISBLANK('Your User Details (Broker)'!C71),\"\",'Your User Details (Broker)'!C71)","v":""},{"$f":"IF(ISBLANK('Your User Details (Broker)'!D71),\"\",'Your User Details (Broker)'!D71)","v":""},null,null,null,null,null,null,null,{"$f":"IF(ISBLANK('Your User Details (Broker)'!E71),\"\",\"Y\")","v":""},{"$f":"IF(ISBLANK('Your User Details (Broker)'!E71),\"\",\"Broker\")","v":""},{"$f":"IF(ISBLANK(Start!$E$26),\"\",Start!$E$26)","v":""},{"$f":"IF(ISBLANK('Your User Details (Broker)'!E71),\"\",\"Multiple\")","v":""}]
[{"$f":"IF(ISBLANK('Your User Details (Broker)'!E72),\"\",'Your User Details (Broker)'!E72)","v":""},{"$f":"IF(ISBLANK('Your User Details (Broker)'!E72),\"\",\"P@ssw0rd\")","v":""},{"$f":"IF(ISBLANK('Your User Details (Broker)'!E72),\"\",'Your User Details (Broker)'!E72)","v":""},{"$f":"IF(ISBLANK('Your User Details (Broker)'!C72),\"\",'Your User Details (Broker)'!C72)","v":""},{"$f":"IF(ISBLANK('Your User Details (Broker)'!D72),\"\",'Your User Details (Broker)'!D72)","v":""},null,null,null,null,null,null,null,{"$f":"IF(ISBLANK('Your User Details (Broker)'!E72),\"\",\"Y\")","v":""},{"$f":"IF(ISBLANK('Your User Details (Broker)'!E72),\"\",\"Broker\")","v":""},{"$f":"IF(ISBLANK(Start!$E$26),\"\",Start!$E$26)","v":""},{"$f":"IF(ISBLANK('Your User Details (Broker)'!E72),\"\",\"Multiple\")","v":""}]
[{"$f":"IF(ISBLANK('Your User Details (Broker)'!E73),\"\",'Your User Details (Broker)'!E73)","v":""},{"$f":"IF(ISBLANK('Your User Details (Broker)'!E73),\"\",\"P@ssw0rd\")","v":""},{"$f":"IF(ISBLANK('Your User Details (Broker)'!E73),\"\",'Your User Details (Broker)'!E73)","v":""},{"$f":"IF(ISBLANK('Your User Details (Broker)'!C73),\"\",'Your User Details (Broker)'!C73)","v":""},{"$f":"IF(ISBLANK('Your User Details (Broker)'!D73),\"\",'Your User Details (Broker)'!D73)","v":""},null,null,null,null,null,null,null,{"$f":"IF(ISBLANK('Your User Details (Broker)'!E73),\"\",\"Y\")","v":""},{"$f":"IF(ISBLANK('Your User Details (Broker)'!E73),\"\",\"Broker\")","v":""},{"$f":"IF(ISBLANK(Start!$E$26),\"\",Start!$E$26)","v":""},{"$f":"IF(ISBLANK('Your User Details (Broker)'!E73),\"\",\"Multiple\")","v":""}]
[{"$f":"IF(ISBLANK('Your User Details (Broker)'!E74),\"\",'Your User Details (Broker)'!E74)","v":""},{"$f":"IF(ISBLANK('Your User Details (Broker)'!E74),\"\",\"P@ssw0rd\")","v":""},{"$f":"IF(ISBLANK('Your User Details (Broker)'!E74),\"\",'Your User Details (Broker)'!E74)","v":""},{"$f":"IF(ISBLANK('Your User Details (Broker)'!C74),\"\",'Your User Details (Broker)'!C74)","v":""},{"$f":"IF(ISBLANK('Your User Details (Broker)'!D74),\"\",'Your User Details (Broker)'!D74)","v":""},null,null,null,null,null,null,null,{"$f":"IF(ISBLANK('Your User Details (Broker)'!E74),\"\",\"Y\")","v":""},{"$f":"IF(ISBLANK('Your User Details (Broker)'!E74),\"\",\"Broker\")","v":""},{"$f":"IF(ISBLANK(Start!$E$26),\"\",Start!$E$26)","v":""},{"$f":"IF(ISBLANK('Your User Details (Broker)'!E74),\"\",\"Multiple\")","v":""}]
[{"$f":"IF(ISBLANK('Your User Details (Broker)'!E75),\"\",'Your User Details (Broker)'!E75)","v":""},{"$f":"IF(ISBLANK('Your User Details (Broker)'!E75),\"\",\"P@ssw0rd\")","v":""},{"$f":"IF(ISBLANK('Your User Details (Broker)'!E75),\"\",'Your User Details (Broker)'!E75)","v":""},{"$f":"IF(ISBLANK('Your User Details (Broker)'!C75),\"\",'Your User Details (Broker)'!C75)","v":""},{"$f":"IF(ISBLANK('Your User Details (Broker)'!D75),\"\",'Your User Details (Broker)'!D75)","v":""},null,null,null,null,null,null,null,{"$f":"IF(ISBLANK('Your User Details (Broker)'!E75),\"\",\"Y\")","v":""},{"$f":"IF(ISBLANK('Your User Details (Broker)'!E75),\"\",\"Broker\")","v":""},{"$f":"IF(ISBLANK(Start!$E$26),\"\",Start!$E$26)","v":""},{"$f":"IF(ISBLANK('Your User Details (Broker)'!E75),\"\",\"Multiple\")","v":""}]
[{"$f":"IF(ISBLANK('Your User Details (Broker)'!E76),\"\",'Your User Details (Broker)'!E76)","v":""},{"$f":"IF(ISBLANK('Your User Details (Broker)'!E76),\"\",\"P@ssw0rd\")","v":""},{"$f":"IF(ISBLANK('Your User Details (Broker)'!E76),\"\",'Your User Details (Broker)'!E76)","v":""},{"$f":"IF(ISBLANK('Your User Details (Broker)'!C76),\"\",'Your User Details (Broker)'!C76)","v":""},{"$f":"IF(ISBLANK('Your User Details (Broker)'!D76),\"\",'Your User Details (Broker)'!D76)","v":""},null,null,null,null,null,null,null,{"$f":"IF(ISBLANK('Your User Details (Broker)'!E76),\"\",\"Y\")","v":""},{"$f":"IF(ISBLANK('Your User Details (Broker)'!E76),\"\",\"Broker\")","v":""},{"$f":"IF(ISBLANK(Start!$E$26),\"\",Start!$E$26)","v":""},{"$f":"IF(ISBLANK('Your User Details (Broker)'!E76),\"\",\"Multiple\")","v":""}]
[{"$f":"IF(ISBLANK('Your User Details (Broker)'!E77),\"\",'Your User Details (Broker)'!E77)","v":""},{"$f":"IF(ISBLANK('Your User Details (Broker)'!E77),\"\",\"P@ssw0rd\")","v":""},{"$f":"IF(ISBLANK('Your User Details (Broker)'!E77),\"\",'Your User Details (Broker)'!E77)","v":""},{"$f":"IF(ISBLANK('Your User Details (Broker)'!C77),\"\",'Your User Details (Broker)'!C77)","v":""},{"$f":"IF(ISBLANK('Your User Details (Broker)'!D77),\"\",'Your User Details (Broker)'!D77)","v":""},null,null,null,null,null,null,null,{"$f":"IF(ISBLANK('Your User Details (Broker)'!E77),\"\",\"Y\")","v":""},{"$f":"IF(ISBLANK('Your User Details (Broker)'!E77),\"\",\"Broker\")","v":""},{"$f":"IF(ISBLANK(Start!$E$26),\"\",Start!$E$26)","v":""},{"$f":"IF(ISBLANK('Your User Details (Broker)'!E77),\"\",\"Multiple\")","v":""}]
[{"$f":"IF(ISBLANK('Your User Details (Broker)'!E78),\"\",'Your User Details (Broker)'!E78)","v":""},{"$f":"IF(ISBLANK('Your User Details (Broker)'!E78),\"\",\"P@ssw0rd\")","v":""},{"$f":"IF(ISBLANK('Your User Details (Broker)'!E78),\"\",'Your User Details (Broker)'!E78)","v":""},{"$f":"IF(ISBLANK('Your User Details (Broker)'!C78),\"\",'Your User Details (Broker)'!C78)","v":""},{"$f":"IF(ISBLANK('Your User Details (Broker)'!D78),\"\",'Your User Details (Broker)'!D78)","v":""},null,null,null,null,null,null,null,{"$f":"IF(ISBLANK('Your User Details (Broker)'!E78),\"\",\"Y\")","v":""},{"$f":"IF(ISBLANK('Your User Details (Broker)'!E78),\"\",\"Broker\")","v":""},{"$f":"IF(ISBLANK(Start!$E$26),\"\",Start!$E$26)","v":""},{"$f":"IF(ISBLANK('Your User Details (Broker)'!E78),\"\",\"Multiple\")","v":""}]
[{"$f":"IF(ISBLANK('Your User Details (Broker)'!E79),\"\",'Your User Details (Broker)'!E79)","v":""},{"$f":"IF(ISBLANK('Your User Details (Broker)'!E79),\"\",\"P@ssw0rd\")","v":""},{"$f":"IF(ISBLANK('Your User Details (Broker)'!E79),\"\",'Your User Details (Broker)'!E79)","v":""},{"$f":"IF(ISBLANK('Your User Details (Broker)'!C79),\"\",'Your User Details (Broker)'!C79)","v":""},{"$f":"IF(ISBLANK('Your User Details (Broker)'!D79),\"\",'Your User Details (Broker)'!D79)","v":""},null,null,null,null,null,null,null,{"$f":"IF(ISBLANK('Your User Details (Broker)'!E79),\"\",\"Y\")","v":""},{"$f":"IF(ISBLANK('Your User Details (Broker)'!E79),\"\",\"Broker\")","v":""},{"$f":"IF(ISBLANK(Start!$E$26),\"\",Start!$E$26)","v":""},{"$f":"IF(ISBLANK('Your User Details (Broker)'!E79),\"\",\"Multiple\")","v":""}]
[{"$f":"IF(ISBLANK('Your User Details (Broker)'!E80),\"\",'Your User Details (Broker)'!E80)","v":""},{"$f":"IF(ISBLANK('Your User Details (Broker)'!E80),\"\",\"P@ssw0rd\")","v":""},{"$f":"IF(ISBLANK('Your User Details (Broker)'!E80),\"\",'Your User Details (Broker)'!E80)","v":""},{"$f":"IF(ISBLANK('Your User Details (Broker)'!C80),\"\",'Your User Details (Broker)'!C80)","v":""},{"$f":"IF(ISBLANK('Your User Details (Broker)'!D80),\"\",'Your User Details (Broker)'!D80)","v":""},null,null,null,null,null,null,null,{"$f":"IF(ISBLANK('Your User Details (Broker)'!E80),\"\",\"Y\")","v":""},{"$f":"IF(ISBLANK('Your User Details (Broker)'!E80),\"\",\"Broker\")","v":""},{"$f":"IF(ISBLANK(Start!$E$26),\"\",Start!$E$26)","v":""},{"$f":"IF(ISBLANK('Your User Details (Broker)'!E80),\"\",\"Multiple\")","v":""}]
[{"$f":"IF(ISBLANK('Your User Details (Broker)'!E81),\"\",'Your User Details (Broker)'!E81)","v":""},{"$f":"IF(ISBLANK('Your User Details (Broker)'!E81),\"\",\"P@ssw0rd\")","v":""},{"$f":"IF(ISBLANK('Your User Details (Broker)'!E81),\"\",'Your User Details (Broker)'!E81)","v":""},{"$f":"IF(ISBLANK('Your User Details (Broker)'!C81),\"\",'Your User Details (Broker)'!C81)","v":""},{"$f":"IF(ISBLANK('Your User Details (Broker)'!D81),\"\",'Your User Details (Broker)'!D81)","v":""},null,null,null,null,null,null,null,{"$f":"IF(ISBLANK('Your User Details (Broker)'!E81),\"\",\"Y\")","v":""},{"$f":"IF(ISBLANK('Your User Details (Broker)'!E81),\"\",\"Broker\")","v":""},{"$f":"IF(ISBLANK(Start!$E$26),\"\",Start!$E$26)","v":""},{"$f":"IF(ISBLANK('Your User Details (Broker)'!E81),\"\",\"Multiple\")","v":""}]
[{"$f":"IF(ISBLANK('Your User Details (Broker)'!E82),\"\",'Your User Details (Broker)'!E82)","v":""},{"$f":"IF(ISBLANK('Your User Details (Broker)'!E82),\"\",\"P@ssw0rd\")","v":""},{"$f":"IF(ISBLANK('Your User Details (Broker)'!E82),\"\",'Your User Details (Broker)'!E82)","v":""},{"$f":"IF(ISBLANK('Your User Details (Broker)'!C82),\"\",'Your User Details (Broker)'!C82)","v":""},{"$f":"IF(ISBLANK('Your User Details (Broker)'!D82),\"\",'Your User Details (Broker)'!D82)","v":""},null,null,null,null,null,null,null,{"$f":"IF(ISBLANK('Your User Details (Broker)'!E82),\"\",\"Y\")","v":""},{"$f":"IF(ISBLANK('Your User Details (Broker)'!E82),\"\",\"Broker\")","v":""},{"$f":"IF(ISBLANK(Start!$E$26),\"\",Start!$E$26)","v":""},{"$f":"IF(ISBLANK('Your User Details (Broker)'!E82),\"\",\"Multiple\")","v":""}]
[{"$f":"IF(ISBLANK('Your User Details (Broker)'!E83),\"\",'Your User Details (Broker)'!E83)","v":""},{"$f":"IF(ISBLANK('Your User Details (Broker)'!E83),\"\",\"P@ssw0rd\")","v":""},{"$f":"IF(ISBLANK('Your User Details (Broker)'!E83),\"\",'Your User Details (Broker)'!E83)","v":""},{"$f":"IF(ISBLANK('Your User Details (Broker)'!C83),\"\",'Your User Details (Broker)'!C83)","v":""},{"$f":"IF(ISBLANK('Your User Details (Broker)'!D83),\"\",'Your User Details (Broker)'!D83)","v":""},null,null,null,null,null,null,null,{"$f":"IF(ISBLANK('Your User Details (Broker)'!E83),\"\",\"Y\")","v":""},{"$f":"IF(ISBLANK('Your User Details (Broker)'!E83),\"\",\"Broker\")","v":""},{"$f":"IF(ISBLANK(Start!$E$26),\"\",Start!$E$26)","v":""},{"$f":"IF(ISBLANK('Your User Details (Broker)'!E83),\"\",\"Multiple\")","v":""}]
[{"$f":"IF(ISBLANK('Your User Details (Broker)'!E84),\"\",'Your User Details (Broker)'!E84)","v":""},{"$f":"IF(ISBLANK('Your User Details (Broker)'!E84),\"\",\"P@ssw0rd\")","v":""},{"$f":"IF(ISBLANK('Your User Details (Broker)'!E84),\"\",'Your User Details (Broker)'!E84)","v":""},{"$f":"IF(ISBLANK('Your User Details (Broker)'!C84),\"\",'Your User Details (Broker)'!C84)","v":""},{"$f":"IF(ISBLANK('Your User Details (Broker)'!D84),\"\",'Your User Details (Broker)'!D84)","v":""},null,null,null,null,null,null,null,{"$f":"IF(ISBLANK('Your User Details (Broker)'!E84),\"\",\"Y\")","v":""},{"$f":"IF(ISBLANK('Your User Details (Broker)'!E84),\"\",\"Broker\")","v":""},{"$f":"IF(ISBLANK(Start!$E$26),\"\",Start!$E$26)","v":""},{"$f":"IF(ISBLANK('Your User Details (Broker)'!E84),\"\",\"Multiple\")","v":""}]
[{"$f":"IF(ISBLANK('Your User Details (Broker)'!E85),\"\",'Your User Details (Broker)'!E85)","v":""},{"$f":"IF(ISBLANK('Your User Details (Broker)'!E85),\"\",\"P@ssw0rd\")","v":""},{"$f":"IF(ISBLANK('Your User Details (Broker)'!E85),\"\",'Your User Details (Broker)'!E85)","v":""},{"$f":"IF(ISBLANK('Your User Details (Broker)'!C85),\"\",'Your User Details (Broker)'!C85)","v":""},{"$f":"IF(ISBLANK('Your User Details (Broker)'!D85),\"\",'Your User Details (Broker)'!D85)","v":""},null,null,null,null,null,null,null,{"$f":"IF(ISBLANK('Your User Details (Broker)'!E85),\"\",\"Y\")","v":""},{"$f":"IF(ISBLANK('Your User Details (Broker)'!E85),\"\",\"Broker\")","v":""},{"$f":"IF(ISBLANK(Start!$E$26),\"\",Start!$E$26)","v":""},{"$f":"IF(ISBLANK('Your User Details (Broker)'!E85),\"\",\"Multiple\")","v":""}]
[{"$f":"IF(ISBLANK('Your User Details (Broker)'!E86),\"\",'Your User Details (Broker)'!E86)","v":""},{"$f":"IF(ISBLANK('Your User Details (Broker)'!E86),\"\",\"P@ssw0rd\")","v":""},{"$f":"IF(ISBLANK('Your User Details (Broker)'!E86),\"\",'Your User Details (Broker)'!E86)","v":""},{"$f":"IF(ISBLANK('Your User Details (Broker)'!C86),\"\",'Your User Details (Broker)'!C86)","v":""},{"$f":"IF(ISBLANK('Your User Details (Broker)'!D86),\"\",'Your User Details (Broker)'!D86)","v":""},null,null,null,null,null,null,null,{"$f":"IF(ISBLANK('Your User Details (Broker)'!E86),\"\",\"Y\")","v":""},{"$f":"IF(ISBLANK('Your User Details (Broker)'!E86),\"\",\"Broker\")","v":""},{"$f":"IF(ISBLANK(Start!$E$26),\"\",Start!$E$26)","v":""},{"$f":"IF(ISBLANK('Your User Details (Broker)'!E86),\"\",\"Multiple\")","v":""}]
[{"$f":"IF(ISBLANK('Your User Details (Broker)'!E87),\"\",'Your User Details (Broker)'!E87)","v":""},{"$f":"IF(ISBLANK('Your User Details (Broker)'!E87),\"\",\"P@ssw0rd\")","v":""},{"$f":"IF(ISBLANK('Your User Details (Broker)'!E87),\"\",'Your User Details (Broker)'!E87)","v":""},{"$f":"IF(ISBLANK('Your User Details (Broker)'!C87),\"\",'Your User Details (Broker)'!C87)","v":""},{"$f":"IF(ISBLANK('Your User Details (Broker)'!D87),\"\",'Your User Details (Broker)'!D87)","v":""},null,null,null,null,null,null,null,{"$f":"IF(ISBLANK('Your User Details (Broker)'!E87),\"\",\"Y\")","v":""},{"$f":"IF(ISBLANK('Your User Details (Broker)'!E87),\"\",\"Broker\")","v":""},{"$f":"IF(ISBLANK(Start!$E$26),\"\",Start!$E$26)","v":""},{"$f":"IF(ISBLANK('Your User Details (Broker)'!E87),\"\",\"Multiple\")","v":""}]
[{"$f":"IF(ISBLANK('Your User Details (Broker)'!E88),\"\",'Your User Details (Broker)'!E88)","v":""},{"$f":"IF(ISBLANK('Your User Details (Broker)'!E88),\"\",\"P@ssw0rd\")","v":""},{"$f":"IF(ISBLANK('Your User Details (Broker)'!E88),\"\",'Your User Details (Broker)'!E88)","v":""},{"$f":"IF(ISBLANK('Your User Details (Broker)'!C88),\"\",'Your User Details (Broker)'!C88)","v":""},{"$f":"IF(ISBLANK('Your User Details (Broker)'!D88),\"\",'Your User Details (Broker)'!D88)","v":""},null,null,null,null,null,null,null,{"$f":"IF(ISBLANK('Your User Details (Broker)'!E88),\"\",\"Y\")","v":""},{"$f":"IF(ISBLANK('Your User Details (Broker)'!E88),\"\",\"Broker\")","v":""},{"$f":"IF(ISBLANK(Start!$E$26),\"\",Start!$E$26)","v":""},{"$f":"IF(ISBLANK('Your User Details (Broker)'!E88),\"\",\"Multiple\")","v":""}]
[{"$f":"IF(ISBLANK('Your User Details (Broker)'!E89),\"\",'Your User Details (Broker)'!E89)","v":""},{"$f":"IF(ISBLANK('Your User Details (Broker)'!E89),\"\",\"P@ssw0rd\")","v":""},{"$f":"IF(ISBLANK('Your User Details (Broker)'!E89),\"\",'Your User Details (Broker)'!E89)","v":""},{"$f":"IF(ISBLANK('Your User Details (Broker)'!C89),\"\",'Your User Details (Broker)'!C89)","v":""},{"$f":"IF(ISBLANK('Your User Details (Broker)'!D89),\"\",'Your User Details (Broker)'!D89)","v":""},null,null,null,null,null,null,null,{"$f":"IF(ISBLANK('Your User Details (Broker)'!E89),\"\",\"Y\")","v":""},{"$f":"IF(ISBLANK('Your User Details (Broker)'!E89),\"\",\"Broker\")","v":""},{"$f":"IF(ISBLANK(Start!$E$26),\"\",Start!$E$26)","v":""},{"$f":"IF(ISBLANK('Your User Details (Broker)'!E89),\"\",\"Multiple\")","v":""}]
[{"$f":"IF(ISBLANK('Your User Details (Broker)'!E90),\"\",'Your User Details (Broker)'!E90)","v":""},{"$f":"IF(ISBLANK('Your User Details (Broker)'!E90),\"\",\"P@ssw0rd\")","v":""},{"$f":"IF(ISBLANK('Your User Details (Broker)'!E90),\"\",'Your User Details (Broker)'!E90)","v":""},{"$f":"IF(ISBLANK('Your User Details (Broker)'!C90),\"\",'Your User Details (Broker)'!C90)","v":""},{"$f":"IF(ISBLANK('Your User Details (Broker)'!D90),\"\",'Your User Details (Broker)'!D90)","v":""},null,null,null,null,null,null,null,{"$f":"IF(ISBLANK('Your User Details (Broker)'!E90),\"\",\"Y\")","v":""},{"$f":"IF(ISBLANK('Your User Details (Broker)'!E90),\"\",\"Broker\")","v":""},{"$f":"IF(ISBLANK(Start!$E$26),\"\",Start!$E$26)","v":""},{"$f":"IF(ISBLANK('Your User Details (Broker)'!E90),\"\",\"Multiple\")","v":""}]
[{"$f":"IF(ISBLANK('Your User Details (Broker)'!E91),\"\",'Your User Details (Broker)'!E91)","v":""},{"$f":"IF(ISBLANK('Your User Details (Broker)'!E91),\"\",\"P@ssw0rd\")","v":""},{"$f":"IF(ISBLANK('Your User Details (Broker)'!E91),\"\",'Your User Details (Broker)'!E91)","v":""},{"$f":"IF(ISBLANK('Your User Details (Broker)'!C91),\"\",'Your User Details (Broker)'!C91)","v":""},{"$f":"IF(ISBLANK('Your User Details (Broker)'!D91),\"\",'Your User Details (Broker)'!D91)","v":""},null,null,null,null,null,null,null,{"$f":"IF(ISBLANK('Your User Details (Broker)'!E91),\"\",\"Y\")","v":""},{"$f":"IF(ISBLANK('Your User Details (Broker)'!E91),\"\",\"Broker\")","v":""},{"$f":"IF(ISBLANK(Start!$E$26),\"\",Start!$E$26)","v":""},{"$f":"IF(ISBLANK('Your User Details (Broker)'!E91),\"\",\"Multiple\")","v":""}]
[{"$f":"IF(ISBLANK('Your User Details (Broker)'!E92),\"\",'Your User Details (Broker)'!E92)","v":""},{"$f":"IF(ISBLANK('Your User Details (Broker)'!E92),\"\",\"P@ssw0rd\")","v":""},{"$f":"IF(ISBLANK('Your User Details (Broker)'!E92),\"\",'Your User Details (Broker)'!E92)","v":""},{"$f":"IF(ISBLANK('Your User Details (Broker)'!C92),\"\",'Your User Details (Broker)'!C92)","v":""},{"$f":"IF(ISBLANK('Your User Details (Broker)'!D92),\"\",'Your User Details (Broker)'!D92)","v":""},null,null,null,null,null,null,null,{"$f":"IF(ISBLANK('Your User Details (Broker)'!E92),\"\",\"Y\")","v":""},{"$f":"IF(ISBLANK('Your User Details (Broker)'!E92),\"\",\"Broker\")","v":""},{"$f":"IF(ISBLANK(Start!$E$26),\"\",Start!$E$26)","v":""},{"$f":"IF(ISBLANK('Your User Details (Broker)'!E92),\"\",\"Multiple\")","v":""}]
[{"$f":"IF(ISBLANK('Your User Details (Broker)'!E93),\"\",'Your User Details (Broker)'!E93)","v":""},{"$f":"IF(ISBLANK('Your User Details (Broker)'!E93),\"\",\"P@ssw0rd\")","v":""},{"$f":"IF(ISBLANK('Your User Details (Broker)'!E93),\"\",'Your User Details (Broker)'!E93)","v":""},{"$f":"IF(ISBLANK('Your User Details (Broker)'!C93),\"\",'Your User Details (Broker)'!C93)","v":""},{"$f":"IF(ISBLANK('Your User Details (Broker)'!D93),\"\",'Your User Details (Broker)'!D93)","v":""},null,null,null,null,null,null,null,{"$f":"IF(ISBLANK('Your User Details (Broker)'!E93),\"\",\"Y\")","v":""},{"$f":"IF(ISBLANK('Your User Details (Broker)'!E93),\"\",\"Broker\")","v":""},{"$f":"IF(ISBLANK(Start!$E$26),\"\",Start!$E$26)","v":""},{"$f":"IF(ISBLANK('Your User Details (Broker)'!E93),\"\",\"Multiple\")","v":""}]
[{"$f":"IF(ISBLANK('Your User Details (Broker)'!E94),\"\",'Your User Details (Broker)'!E94)","v":""},{"$f":"IF(ISBLANK('Your User Details (Broker)'!E94),\"\",\"P@ssw0rd\")","v":""},{"$f":"IF(ISBLANK('Your User Details (Broker)'!E94),\"\",'Your User Details (Broker)'!E94)","v":""},{"$f":"IF(ISBLANK('Your User Details (Broker)'!C94),\"\",'Your User Details (Broker)'!C94)","v":""},{"$f":"IF(ISBLANK('Your User Details (Broker)'!D94),\"\",'Your User Details (Broker)'!D94)","v":""},null,null,null,null,null,null,null,{"$f":"IF(ISBLANK('Your User Details (Broker)'!E94),\"\",\"Y\")","v":""},{"$f":"IF(ISBLANK('Your User Details (Broker)'!E94),\"\",\"Broker\")","v":""},{"$f":"IF(ISBLANK(Start!$E$26),\"\",Start!$E$26)","v":""},{"$f":"IF(ISBLANK('Your User Details (Broker)'!E94),\"\",\"Multiple\")","v":""}]
[{"$f":"IF(ISBLANK('Your User Details (Broker)'!E95),\"\",'Your User Details (Broker)'!E95)","v":""},{"$f":"IF(ISBLANK('Your User Details (Broker)'!E95),\"\",\"P@ssw0rd\")","v":""},{"$f":"IF(ISBLANK('Your User Details (Broker)'!E95),\"\",'Your User Details (Broker)'!E95)","v":""},{"$f":"IF(ISBLANK('Your User Details (Broker)'!C95),\"\",'Your User Details (Broker)'!C95)","v":""},{"$f":"IF(ISBLANK('Your User Details (Broker)'!D95),\"\",'Your User Details (Broker)'!D95)","v":""},null,null,null,null,null,null,null,{"$f":"IF(ISBLANK('Your User Details (Broker)'!E95),\"\",\"Y\")","v":""},{"$f":"IF(ISBLANK('Your User Details (Broker)'!E95),\"\",\"Broker\")","v":""},{"$f":"IF(ISBLANK(Start!$E$26),\"\",Start!$E$26)","v":""},{"$f":"IF(ISBLANK('Your User Details (Broker)'!E95),\"\",\"Multiple\")","v":""}]
[{"$f":"IF(ISBLANK('Your User Details (Broker)'!E96),\"\",'Your User Details (Broker)'!E96)","v":""},{"$f":"IF(ISBLANK('Your User Details (Broker)'!E96),\"\",\"P@ssw0rd\")","v":""},{"$f":"IF(ISBLANK('Your User Details (Broker)'!E96),\"\",'Your User Details (Broker)'!E96)","v":""},{"$f":"IF(ISBLANK('Your User Details (Broker)'!C96),\"\",'Your User Details (Broker)'!C96)","v":""},{"$f":"IF(ISBLANK('Your User Details (Broker)'!D96),\"\",'Your User Details (Broker)'!D96)","v":""},null,null,null,null,null,null,null,{"$f":"IF(ISBLANK('Your User Details (Broker)'!E96),\"\",\"Y\")","v":""},{"$f":"IF(ISBLANK('Your User Details (Broker)'!E96),\"\",\"Broker\")","v":""},{"$f":"IF(ISBLANK(Start!$E$26),\"\",Start!$E$26)","v":""},{"$f":"IF(ISBLANK('Your User Details (Broker)'!E96),\"\",\"Multiple\")","v":""}]
[{"$f":"IF(ISBLANK('Your User Details (Broker)'!E97),\"\",'Your User Details (Broker)'!E97)","v":""},{"$f":"IF(ISBLANK('Your User Details (Broker)'!E97),\"\",\"P@ssw0rd\")","v":""},{"$f":"IF(ISBLANK('Your User Details (Broker)'!E97),\"\",'Your User Details (Broker)'!E97)","v":""},{"$f":"IF(ISBLANK('Your User Details (Broker)'!C97),\"\",'Your User Details (Broker)'!C97)","v":""},{"$f":"IF(ISBLANK('Your User Details (Broker)'!D97),\"\",'Your User Details (Broker)'!D97)","v":""},null,null,null,null,null,null,null,{"$f":"IF(ISBLANK('Your User Details (Broker)'!E97),\"\",\"Y\")","v":""},{"$f":"IF(ISBLANK('Your User Details (Broker)'!E97),\"\",\"Broker\")","v":""},{"$f":"IF(ISBLANK(Start!$E$26),\"\",Start!$E$26)","v":""},{"$f":"IF(ISBLANK('Your User Details (Broker)'!E97),\"\",\"Multiple\")","v":""}]
[{"$f":"IF(ISBLANK('Your User Details (Broker)'!E98),\"\",'Your User Details (Broker)'!E98)","v":""},{"$f":"IF(ISBLANK('Your User Details (Broker)'!E98),\"\",\"P@ssw0rd\")","v":""},{"$f":"IF(ISBLANK('Your User Details (Broker)'!E98),\"\",'Your User Details (Broker)'!E98)","v":""},{"$f":"IF(ISBLANK('Your User Details (Broker)'!C98),\"\",'Your User Details (Broker)'!C98)","v":""},{"$f":"IF(ISBLANK('Your User Details (Broker)'!D98),\"\",'Your User Details (Broker)'!D98)","v":""},null,null,null,null,null,null,null,{"$f":"IF(ISBLANK('Your User Details (Broker)'!E98),\"\",\"Y\")","v":""},{"$f":"IF(ISBLANK('Your User Details (Broker)'!E98),\"\",\"Broker\")","v":""},{"$f":"IF(ISBLANK(Start!$E$26),\"\",Start!$E$26)","v":""},{"$f":"IF(ISBLANK('Your User Details (Broker)'!E98),\"\",\"Multiple\")","v":""}]
[{"$f":"IF(ISBLANK('Your User Details (Broker)'!E99),\"\",'Your User Details (Broker)'!E99)","v":""},{"$f":"IF(ISBLANK('Your User Details (Broker)'!E99),\"\",\"P@ssw0rd\")","v":""},{"$f":"IF(ISBLANK('Your User Details (Broker)'!E99),\"\",'Your User Details (Broker)'!E99)","v":""},{"$f":"IF(ISBLANK('Your User Details (Broker)'!C99),\"\",'Your User Details (Broker)'!C99)","v":""},{"$f":"IF(ISBLANK('Your User Details (Broker)'!D99),\"\",'Your User Details (Broker)'!D99)","v":""},null,null,null,null,null,null,null,{"$f":"IF(ISBLANK('Your User Details (Broker)'!E99),\"\",\"Y\")","v":""},{"$f":"IF(ISBLANK('Your User Details (Broker)'!E99),\"\",\"Broker\")","v":""},{"$f":"IF(ISBLANK(Start!$E$26),\"\",Start!$E$26)","v":""},{"$f":"IF(ISBLANK('Your User Details (Broker)'!E99),\"\",\"Multiple\")","v":""}]
[{"$f":"IF(ISBLANK('Your User Details (Broker)'!E100),\"\",'Your User Details (Broker)'!E100)","v":""},{"$f":"IF(ISBLANK('Your User Details (Broker)'!E100),\"\",\"P@ssw0rd\")","v":""},{"$f":"IF(ISBLANK('Your User Details (Broker)'!E100),\"\",'Your User Details (Broker)'!E100)","v":""},{"$f":"IF(ISBLANK('Your User Details (Broker)'!C100),\"\",'Your User Details (Broker)'!C100)","v":""},{"$f":"IF(ISBLANK('Your User Details (Broker)'!D100),\"\",'Your User Details (Broker)'!D100)","v":""},null,null,null,null,null,null,null,{"$f":"IF(ISBLANK('Your User Details (Broker)'!E100),\"\",\"Y\")","v":""},{"$f":"IF(ISBLANK('Your User Details (Broker)'!E100),\"\",\"Broker\")","v":""},{"$f":"IF(ISBLANK(Start!$E$26),\"\",Start!$E$26)","v":""},{"$f":"IF(ISBLANK('Your User Details (Broker)'!E100),\"\",\"Multiple\")","v":""}]
[{"$f":"IF(ISBLANK('Your User Details (Broker)'!E101),\"\",'Your User Details (Broker)'!E101)","v":""},{"$f":"IF(ISBLANK('Your User Details (Broker)'!E101),\"\",\"P@ssw0rd\")","v":""},{"$f":"IF(ISBLANK('Your User Details (Broker)'!E101),\"\",'Your User Details (Broker)'!E101)","v":""},{"$f":"IF(ISBLANK('Your User Details (Broker)'!C101),\"\",'Your User Details (Broker)'!C101)","v":""},{"$f":"IF(ISBLANK('Your User Details (Broker)'!D101),\"\",'Your User Details (Broker)'!D101)","v":""},null,null,null,null,null,null,null,{"$f":"IF(ISBLANK('Your User Details (Broker)'!E101),\"\",\"Y\")","v":""},{"$f":"IF(ISBLANK('Your User Details (Broker)'!E101),\"\",\"Broker\")","v":""},{"$f":"IF(ISBLANK(Start!$E$26),\"\",Start!$E$26)","v":""},{"$f":"IF(ISBLANK('Your User Details (Broker)'!E101),\"\",\"Multiple\")","v":""}]
[{"$f":"IF(ISBLANK('Your User Details (Broker)'!E102),\"\",'Your User Details (Broker)'!E102)","v":""},{"$f":"IF(ISBLANK('Your User Details (Broker)'!E102),\"\",\"P@ssw0rd\")","v":""},{"$f":"IF(ISBLANK('Your User Details (Broker)'!E102),\"\",'Your User Details (Broker)'!E102)","v":""},{"$f":"IF(ISBLANK('Your User Details (Broker)'!C102),\"\",'Your User Details (Broker)'!C102)","v":""},{"$f":"IF(ISBLANK('Your User Details (Broker)'!D102),\"\",'Your User Details (Broker)'!D102)","v":""},null,null,null,null,null,null,null,{"$f":"IF(ISBLANK('Your User Details (Broker)'!E102),\"\",\"Y\")","v":""},{"$f":"IF(ISBLANK('Your User Details (Broker)'!E102),\"\",\"Broker\")","v":""},{"$f":"IF(ISBLANK(Start!$E$26),\"\",Start!$E$26)","v":""},{"$f":"IF(ISBLANK('Your User Details (Broker)'!E102),\"\",\"Multiple\")","v":""}]
[{"$f":"IF(ISBLANK('Your User Details (Broker)'!E103),\"\",'Your User Details (Broker)'!E103)","v":""},{"$f":"IF(ISBLANK('Your User Details (Broker)'!E103),\"\",\"P@ssw0rd\")","v":""},{"$f":"IF(ISBLANK('Your User Details (Broker)'!E103),\"\",'Your User Details (Broker)'!E103)","v":""},{"$f":"IF(ISBLANK('Your User Details (Broker)'!C103),\"\",'Your User Details (Broker)'!C103)","v":""},{"$f":"IF(ISBLANK('Your User Details (Broker)'!D103),\"\",'Your User Details (Broker)'!D103)","v":""},null,null,null,null,null,null,null,{"$f":"IF(ISBLANK('Your User Details (Broker)'!E103),\"\",\"Y\")","v":""},{"$f":"IF(ISBLANK('Your User Details (Broker)'!E103),\"\",\"Broker\")","v":""},{"$f":"IF(ISBLANK(Start!$E$26),\"\",Start!$E$26)","v":""},{"$f":"IF(ISBLANK('Your User Details (Broker)'!E103),\"\",\"Multiple\")","v":""}]
[{"$f":"IF(ISBLANK('Your User Details (Broker)'!E104),\"\",'Your User Details (Broker)'!E104)","v":""},{"$f":"IF(ISBLANK('Your User Details (Broker)'!E104),\"\",\"P@ssw0rd\")","v":""},{"$f":"IF(ISBLANK('Your User Details (Broker)'!E104),\"\",'Your User Details (Broker)'!E104)","v":""},{"$f":"IF(ISBLANK('Your User Details (Broker)'!C104),\"\",'Your User Details (Broker)'!C104)","v":""},{"$f":"IF(ISBLANK('Your User Details (Broker)'!D104),\"\",'Your User Details (Broker)'!D104)","v":""},null,null,null,null,null,null,null,{"$f":"IF(ISBLANK('Your User Details (Broker)'!E104),\"\",\"Y\")","v":""},{"$f":"IF(ISBLANK('Your User Details (Broker)'!E104),\"\",\"Broker\")","v":""},{"$f":"IF(ISBLANK(Start!$E$26),\"\",Start!$E$26)","v":""},{"$f":"IF(ISBLANK('Your User Details (Broker)'!E104),\"\",\"Multiple\")","v":""}]
[{"$f":"IF(ISBLANK('Your User Details (Broker)'!E105),\"\",'Your User Details (Broker)'!E105)","v":""},{"$f":"IF(ISBLANK('Your User Details (Broker)'!E105),\"\",\"P@ssw0rd\")","v":""},{"$f":"IF(ISBLANK('Your User Details (Broker)'!E105),\"\",'Your User Details (Broker)'!E105)","v":""},{"$f":"IF(ISBLANK('Your User Details (Broker)'!C105),\"\",'Your User Details (Broker)'!C105)","v":""},{"$f":"IF(ISBLANK('Your User Details (Broker)'!D105),\"\",'Your User Details (Broker)'!D105)","v":""},null,null,null,null,null,null,null,{"$f":"IF(ISBLANK('Your User Details (Broker)'!E105),\"\",\"Y\")","v":""},{"$f":"IF(ISBLANK('Your User Details (Broker)'!E105),\"\",\"Broker\")","v":""},null,{"$f":"IF(ISBLANK('Your User Details (Broker)'!E105),\"\",\"Multiple\")","v":""}]

{"sheet":"Keys","index":5,"n_rows":231,"n_cols":14,"rows_kept":231,"cut":false,"hidden":true,"merged":[[1,13,1,17],[2,13,2,17],[3,13,3,17],[4,13,4,17],[5,13,5,17]]}
["General Information","Markets","Company Details",null,null,null,null,"Checklist text",null,"Role","Notification","Countries","SDC Configuration"]
["Please select","Please select","Please select",null,"General Information",{"$f":"#REF!","v":{"$error":"#REF!"}},null,"This section has been fully completed",null,"Full-binding","Please select","Please select","Please select here","See key to SDC configuration below"]
["Yes","Yes","Qualifying",null,"Markets",0.12,null,"This section is almost completed",null,"Read-only","Notify team","United Kingdom ","A - Elective","Our company is PPL/SDC member. All stamps are sent to SDC (including LIC)"]
["No","No","Affiliate of Qualifying Company",null,"Test",0.25,null,"This section has been started",null,null,"Notify individual","-","B - Elective","Our company is PPL/SDC member. All stamps are sent to SDC (excluding LIC)"]
["Reset","N/A","Non-Qualifying Company",null,"Test",0.25,null,"This section is outstanding",null,"Broker","Notify both","Afghanistan ","C - Non Elective","Our company is not a PPL/SDC member. But LIC stamps only are sent to SDC"]
[null,null,null,null,"Test",null,null,null,null,"Technician",null,"Albania ","D - Non Elective","Our company is not a PPL/SDC member. Nothing is sent to SDC"]
[null,"Yes",null,null,null,null,null,null,null,"Read-only",null,"Algeria "]
["Cascade response","No",null,null,null,null,null,null,null,null,null,"American Samoa "]
["Please select",null,null,null,null,null,null,null,null,null,null,"Andorra "]
["Yes to all/most",null,null,null,"Sum",{"$f":"SUM(F2:F9)","v":{"$error":"#REF!"}},null,null,null,null,null,"Angola "]
["No to most",null,null,null,null,null,null,null,null,null,null,"Anguilla "]
["Reset",null,null,null,null,null,null,null,null,null,null,"Antigua & Barbuda "]
[null,null,null,null,null,null,null,null,null,null,null,"Argentina "]
["Permitted Territory",null,null,null,null,null,null,null,null,null,null,"Armenia "]
["1 - Worldwide",null,null,null,null,null,null,null,null,null,null,"Aruba "]
["2 - EEA & UK",null,null,null,null,null,null,null,null,null,null,"Australia "]
["3 - Worldwide & UK but excluding EEA",null,null,null,null,null,null,null,null,null,null,"Austria "]
["4 - UK only",null,null,null,null,null,null,null,null,null,null,"Azerbaijan "]
["5 - EEA only",null,null,null,null,null,null,null,null,null,null,"Bahamas, The "]
["6 - Worldwide incl EEA but excluding UK",null,null,null,null,null,null,null,null,null,null,"Bahrain "]
[null,null,null,null,null,null,null,null,null,null,null,"Bangladesh "]
[null,null,null,null,null,null,null,null,null,null,null,"Barbados "]
[null,null,null,null,null,null,null,null,null,null,null,"Belarus "]
[null,null,null,null,null,null,null,null,null,null,null,"Belgium "]
["Please select","Please select",null,null,null,null,null,null,null,null,null,"Belize "]
["New team(s) and new user(s) - can include existing users","Existing broker",null,null,null,null,null,null,null,null,null,"Benin "]
["New team(s) with existing users","Existing carrier",null,null,null,null,null,null,null,null,null,"Bermuda "]
["New user(s) in existing teams",null,null,null,null,null,null,null,null,null,null,"Bhutan "]
[null,null,null,null,null,null,null,null,null,null,null,"Bolivia "]
[null,null,null,null,null,null,null,null,null,null,null,"Bosnia & Herzegovina "]
[null,null,null,null,null,null,null,null,null,null,null,"Botswana "]
[null,null,null,null,null,null,null,null,null,null,null,"Brazil "]
[null,null,null,null,null,null,null,null,null,null,null,"British Virgin Is. "]
[null,null,null,null,null,null,null,null,null,null,null,"Brunei "]
[null,null,null,null,null,null,null,null,null,null,null,"Bulgaria "]
[null,null,null,null,null,null,null,null,null,null,null,"Burkina Faso "]
[null,null,null,null,null,null,null,null,null,null,null,"Burma "]
[null,null,null,null,null,null,null,null,null,null,null,"Burundi "]
[null,null,null,null,null,null,null,null,null,null,null,"Cambodia "]
[null,null,null,null,null,null,null,null,null,null,null,"Cameroon "]
[null,null,null,null,null,null,null,null,null,null,null,"Canada "]
[null,null,null,null,null,null,null,null,null,null,null,"Cape Verde "]
[null,null,null,null,null,null,null,null,null,null,null,"Cayman Islands "]
[null,null,null,null,null,null,null,null,null,null,null,"Central African Rep. "]
[null,null,null,null,null,null,null,null,null,null,null,"Chad "]
[null,null,null,null,null,null,null,null,null,null,null,"Chile "]
[null,null,null,null,null,null,null,null,null,null,null,"China "]
[null,null,null,null,null,null,null,null,null,null,null,"Colombia "]
[null,null,null,null,null,null,null,null,null,null,null,"Comoros "]
[null,null,null,null,null,null,null,null,null,null,null,"Congo, Dem. Rep. "]
[null,null,null,null,null,null,null,null,null,null,null,"Congo, Repub. of the "]
[null,null,null,null,null,null,null,null,null,null,null,"Cook Islands "]
[null,null,null,null,null,null,null,null,null,null,null,"Costa Rica "]
[null,null,null,null,null,null,null,null,null,null,null,"Cote d'Ivoire "]
[null,null,null,null,null,null,null,null,null,null,null,"Croatia "]
[null,null,null,null,null,null,null,null,null,null,null,"Cuba "]
[null,null,null,null,null,null,null,null,null,null,null,"Cyprus "]
[null,null,null,null,null,null,null,null,null,null,null,"Czech Republic "]
[null,null,null,null,null,null,null,null,null,null,null,"Denmark "]
[null,null,null,null,null,null,null,null,null,null,null,"Djibouti "]
[null,null,null,null,null,null,null,null,null,null,null,"Dominica "]
[null,null,null,null,null,null,null,null,null,null,null,"Dominican Republic "]
[null,null,null,null,null,null,null,null,null,null,null,"East Timor "]
[null,null,null,null,null,null,null,null,null,null,null,"Ecuador "]
[null,null,null,null,null,null,null,null,null,null,null,"Egypt "]
[null,null,null,null,null,null,null,null,null,null,null,"El Salvador "]
[null,null,null,null,null,null,null,null,null,null,null,"Equatorial Guinea "]
[null,null,null,null,null,null,null,null,null,null,null,"Eritrea "]
[null,null,null,null,null,null,null,null,null,null,null,"Estonia "]
[null,null,null,null,null,null,null,null,null,null,null,"Ethiopia "]
[null,null,null,null,null,null,null,null,null,null,null,"Faroe Islands "]
[null,null,null,null,null,null,null,null,null,null,null,"Fiji "]
[null,null,null,null,null,null,null,null,null,null,null,"Finland "]
[null,null,null,null,null,null,null,null,null,null,null,"France "]
[null,null,null,null,null,null,null,null,null,null,null,"French Guiana "]
[null,null,null,null,null,null,null,null,null,null,null,"French Polynesia "]
[null,null,null,null,null,null,null,null,null,null,null,"Gabon "]
[null,null,null,null,null,null,null,null,null,null,null,"Gambia, The "]
[null,null,null,null,null,null,null,null,null,null,null,"Gaza Strip "]
[null,null,null,null,null,null,null,null,null,null,null,"Georgia "]
[null,null,null,null,null,null,null,null,null,null,null,"Germany "]
[null,null,null,null,null,null,null,null,null,null,null,"Ghana "]
[null,null,null,null,null,null,null,null,null,null,null,"Gibraltar "]
[null,null,null,null,null,null,null,null,null,null,null,"Greece "]
[null,null,null,null,null,null,null,null,null,null,null,"Greenland "]
[null,null,null,null,null,null,null,null,null,null,null,"Grenada "]
[null,null,null,null,null,null,null,null,null,null,null,"Guadeloupe "]
[null,null,null,null,null,null,null,null,null,null,null,"Guam "]
[null,null,null,null,null,null,null,null,null,null,null,"Guatemala "]
[null,null,null,null,null,null,null,null,null,null,null,"Guernsey "]
[null,null,null,null,null,null,null,null,null,null,null,"Guinea "]
[null,null,null,null,null,null,null,null,null,null,null,"Guinea-Bissau "]
[null,null,null,null,null,null,null,null,null,null,null,"Guyana "]
[null,null,null,null,null,null,null,null,null,null,null,"Haiti "]
[null,null,null,null,null,null,null,null,null,null,null,"Honduras "]
[null,null,null,null,null,null,null,null,null,null,null,"Hong Kong "]
[null,null,null,null,null,null,null,null,null,null,null,"Hungary "]
[null,null,null,null,null,null,null,null,null,null,null,"Iceland "]
[null,null,null,null,null,null,null,null,null,null,null,"India "]
[null,null,null,null,null,null,null,null,null,null,null,"Indonesia "]
[null,null,null,null,null,null,null,null,null,null,null,"Iran "]
[null,null,null,null,null,null,null,null,null,null,null,"Iraq "]
[null,null,null,null,null,null,null,null,null,null,null,"Ireland "]
[null,null,null,null,null,null,null,null,null,null,null,"Isle of Man "]
[null,null,null,null,null,null,null,null,null,null,null,"Israel "]
[null,null,null,null,null,null,null,null,null,null,null,"Italy "]
[null,null,null,null,null,null,null,null,null,null,null,"Jamaica "]
[null,null,null,null,null,null,null,null,null,null,null,"Japan "]
[null,null,null,null,null,null,null,null,null,null,null,"Jersey "]
[null,null,null,null,null,null,null,null,null,null,null,"Jordan "]
[null,null,null,null,null,null,null,null,null,null,null,"Kazakhstan "]
[null,null,null,null,null,null,null,null,null,null,null,"Kenya "]
[null,null,null,null,null,null,null,null,null,null,null,"Kiribati "]
[null,null,null,null,null,null,null,null,null,null,null,"Korea, North "]
[null,null,null,null,null,null,null,null,null,null,null,"Korea, South "]
[null,null,null,null,null,null,null,null,null,null,null,"Kuwait "]
[null,null,null,null,null,null,null,null,null,null,null,"Kyrgyzstan "]
[null,null,null,null,null,null,null,null,null,null,null,"Laos "]
[null,null,null,null,null,null,null,null,null,null,null,"Latvia "]
[null,null,null,null,null,null,null,null,null,null,null,"Lebanon "]
[null,null,null,null,null,null,null,null,null,null,null,"Lesotho "]
[null,null,null,null,null,null,null,null,null,null,null,"Liberia "]
[null,null,null,null,null,null,null,null,null,null,null,"Libya "]
[null,null,null,null,null,null,null,null,null,null,null,"Liechtenstein "]
[null,null,null,null,null,null,null,null,null,null,null,"Lithuania "]
[null,null,null,null,null,null,null,null,null,null,null,"Luxembourg "]
[null,null,null,null,null,null,null,null,null,null,null,"Macau "]
[null,null,null,null,null,null,null,null,null,null,null,"Macedonia "]
[null,null,null,null,null,null,null,null,null,null,null,"Madagascar "]
[null,null,null,null,null,null,null,null,null,null,null,"Malawi "]
[null,null,null,null,null,null,null,null,null,null,null,"Malaysia "]
[null,null,null,null,null,null,null,null,null,null,null,"Maldives "]
[null,null,null,null,null,null,null,null,null,null,null,"Mali "]
[null,null,null,null,null,null,null,null,null,null,null,"Malta "]
[null,null,null,null,null,null,null,null,null,null,null,"Marshall Islands "]
[null,null,null,null,null,null,null,null,null,null,null,"Martinique "]
[null,null,null,null,null,null,null,null,null,null,null,"Mauritania "]
[null,null,null,null,null,null,null,null,null,null,null,"Mauritius "]
[null,null,null,null,null,null,null,null,null,null,null,"Mayotte "]
[null,null,null,null,null,null,null,null,null,null,null,"Mexico "]
[null,null,null,null,null,null,null,null,null,null,null,"Micronesia, Fed. St. "]
[null,null,null,null,null,null,null,null,null,null,null,"Moldova "]
[null,null,null,null,null,null,null,null,null,null,null,"Monaco "]
[null,null,null,null,null,null,null,null,null,null,null,"Mongolia "]
[null,null,null,null,null,null,null,null,null,null,null,"Montserrat "]
[null,null,null,null,null,null,null,null,null,null,null,"Morocco "]
[null,null,null,null,null,null,null,null,null,null,null,"Mozambique "]
[null,null,null,null,null,null,null,null,null,null,null,"Namibia "]
[null,null,null,null,null,null,null,null,null,null,null,"Nauru "]
[null,null,null,null,null,null,null,null,null,null,null,"Nepal "]
[null,null,null,null,null,null,null,null,null,null,null,"Netherlands "]
[null,null,null,null,null,null,null,null,null,null,null,"Netherlands Antilles "]
[null,null,null,null,null,null,null,null,null,null,null,"New Caledonia "]
[null,null,null,null,null,null,null,null,null,null,null,"New Zealand "]
[null,null,null,null,null,null,null,null,null,null,null,"Nicaragua "]
[null,null,null,null,null,null,null,null,null,null,null,"Niger "]
[null,null,null,null,null,null,null,null,null,null,null,"Nigeria "]
[null,null,null,null,null,null,null,null,null,null,null,"N. Mariana Islands "]
[null,null,null,null,null,null,null,null,null,null,null,"Norway "]
[null,null,null,null,null,null,null,null,null,null,null,"Oman "]
[null,null,null,null,null,null,null,null,null,null,null,"Pakistan "]
[null,null,null,null,null,null,null,null,null,null,null,"Palau "]
[null,null,null,null,null,null,null,null,null,null,null,"Panama "]
[null,null,null,null,null,null,null,null,null,null,null,"Papua New Guinea "]
[null,null,null,null,null,null,null,null,null,null,null,"Paraguay "]
[null,null,null,null,null,null,null,null,null,null,null,"Peru "]
[null,null,null,null,null,null,null,null,null,null,null,"Philippines "]
[null,null,null,null,null,null,null,null,null,null,null,"Poland "]
[null,null,null,null,null,null,null,null,null,null,null,"Portugal "]
[null,null,null,null,null,null,null,null,null,null,null,"Puerto Rico "]
[null,null,null,null,null,null,null,null,null,null,null,"Qatar "]
[null,null,null,null,null,null,null,null,null,null,null,"Reunion "]
[null,null,null,null,null,null,null,null,null,null,null,"Romania "]
[null,null,null,null,null,null,null,null,null,null,null,"Russia "]
[null,null,null,null,null,null,null,null,null,null,null,"Rwanda "]
[null,null,null,null,null,null,null,null,null,null,null,"Saint Helena "]
[null,null,null,null,null,null,null,null,null,null,null,"Saint Kitts & Nevis "]
[null,null,null,null,null,null,null,null,null,null,null,"Saint Lucia "]
[null,null,null,null,null,null,null,null,null,null,null,"St Pierre & Miquelon "]
[null,null,null,null,null,null,null,null,null,null,null,"Saint Vincent and the Grenadines "]
[null,null,null,null,null,null,null,null,null,null,null,"Samoa "]
[null,null,null,null,null,null,null,null,null,null,null,"San Marino "]
[null,null,null,null,null,null,null,null,null,null,null,"Sao Tome & Principe "]
[null,null,null,null,null,null,null,null,null,null,null,"Saudi Arabia "]
[null,null,null,null,null,null,null,null,null,null,null,"Senegal "]
[null,null,null,null,null,null,null,null,null,null,null,"Serbia "]
[null,null,null,null,null,null,null,null,null,null,null,"Seychelles "]
[null,null,null,null,null,null,null,null,null,null,null,"Sierra Leone "]
[null,null,null,null,null,null,null,null,null,null,null,"Singapore "]
[null,null,null,null,null,null,null,null,null,null,null,"Slovakia "]
[null,null,null,null,null,null,null,null,null,null,null,"Slovenia "]
[null,null,null,null,null,null,null,null,null,null,null,"Solomon Islands "]
[null,null,null,null,null,null,null,null,null,null,null,"Somalia "]
[null,null,null,null,null,null,null,null,null,null,null,"South Africa "]
[null,null,null,null,null,null,null,null,null,null,null,"Spain "]
[null,null,null,null,null,null,null,null,null,null,null,"Sri Lanka "]
[null,null,null,null,null,null,null,null,null,null,null,"Sudan "]
[null,null,null,null,null,null,null,null,null,null,null,"Suriname "]
[null,null,null,null,null,null,null,null,null,null,null,"Swaziland "]
[null,null,null,null,null,null,null,null,null,null,null,"Sweden "]
[null,null,null,null,null,null,null,null,null,null,null,"Switzerland "]
[null,null,null,null,null,null,null,null,null,null,null,"Syria "]
[null,null,null,null,null,null,null,null,null,null,null,"Taiwan "]
[null,null,null,null,null,null,null,null,null,null,null,"Tajikistan "]
[null,null,null,null,null,null,null,null,null,null,null,"Tanzania "]
[null,null,null,null,null,null,null,null,null,null,null,"Thailand "]
[null,null,null,null,null,null,null,null,null,null,null,"Togo "]
[null,null,null,null,null,null,null,null,null,null,null,"Tonga "]
[null,null,null,null,null,null,null,null,null,null,null,"Trinidad & Tobago "]
[null,null,null,null,null,null,null,null,null,null,null,"Tunisia "]
[null,null,null,null,null,null,null,null,null,null,null,"Turkey "]
[null,null,null,null,null,null,null,null,null,null,null,"Turkmenistan "]
[null,null,null,null,null,null,null,null,null,null,null,"Turks & Caicos Is "]
[null,null,null,null,null,null,null,null,null,null,null,"Tuvalu "]
[null,null,null,null,null,null,null,null,null,null,null,"Uganda "]
[null,null,null,null,null,null,null,null,null,null,null,"Ukraine "]
[null,null,null,null,null,null,null,null,null,null,null,"United Arab Emirates "]
[null,null,null,null,null,null,null,null,null,null,null,"United Kingdom "]
[null,null,null,null,null,null,null,null,null,null,null,"United States "]
[null,null,null,null,null,null,null,null,null,null,null,"Uruguay "]
[null,null,null,null,null,null,null,null,null,null,null,"Uzbekistan "]
[null,null,null,null,null,null,null,null,null,null,null,"Vanuatu "]
[null,null,null,null,null,null,null,null,null,null,null,"Venezuela "]
[null,null,null,null,null,null,null,null,null,null,null,"Vietnam "]
[null,null,null,null,null,null,null,null,null,null,null,"Virgin Islands "]
[null,null,null,null,null,null,null,null,null,null,null,"Wallis and Futuna "]
[null,null,null,null,null,null,null,null,null,null,null,"West Bank "]
[null,null,null,null,null,null,null,null,null,null,null,"Western Sahara "]
[null,null,null,null,null,null,null,null,null,null,null,"Yemen "]
[null,null,null,null,null,null,null,null,null,null,null,"Zambia "]
[null,null,null,null,null,null,null,null,null,null,null,"Zimbabwe "]